{"text_format":"1","workbook":"xlsx","n_sheets":8,"sheets":["INICIO","Estructura_Planeación_Estr","Mapa_EstraSectorial","listas","Indicadores","Plan_misional","Plan_transversal","Despliegue tareas entidades"],"not_rendered":{"charts":0,"images":20,"macros":1,"external_links":1,"defined_names":35,"comments":3,"pivot_tables":0},"unopened":[],"bounds":{"document_bytes":16777216,"sheet_cells":100000,"rows_first":2000,"rows_last":500,"rows_between":2000,"halvings":0,"cell_chars":16384,"cell_head_chars":4096},"cells_cut":0,"cells_raw":0,"read":"whole","date_system":"1900"}

{"sheet":"INICIO","index":0,"n_rows":0,"n_cols":0,"rows_kept":0,"cut":false,"hidden":false,"merged":[]}

{"sheet":"Estructura_Planeación_Estr","index":1,"n_rows":0,"n_cols":0,"rows_kept":0,"cut":false,"hidden":false,"merged":[]}

{"sheet":"Mapa_EstraSectorial","index":2,"n_rows":5,"n_cols":2,"rows_kept":5,"cut":false,"hidden":false,"merged":[[3,2,3,13],[4,1,4,16]]}
[]
[]
[]
[]
[null,"Versión 1 aprobada en el Comité Institucional de Gestión y Desempeño del 23 de diciembre de 2022"]

{"sheet":"listas","index":3,"n_rows":31,"n_cols":14,"rows_kept":31,"cut":false,"hidden":true,"merged":[]}
[]
[null,"Dimensión","Política MIPG","Fuente de Información de la Tarea","Componente PAAC","Subcomponente PAAC","Fuente de Financiación","Recursos necesarios para el desarrollo de la tarea","Plan Decreto 612","Eje transformacional PND 2022-2026","Objetivo ODS"]
[null,"Talento Humano","Planeación Institucional ","Cierre de brechas FURAG","1. Gestión del Riesgo de Corrupción","1.1. Política de Administración de Riesgos","Funcionamiento","Talento Humano","1.Plan Institucional de Archivos de la Entidad – PINAR","Paz Total","• Objetivo 1: Fin de la pobreza","Se cambió componente de PAAC según presentación Plan anticorrupción",null,"PLAN DE ACCIÓN ANUAL (Dto. 612 de 2018)"]
[null,"Direccionamiento Estratégico y Planeación","Gestión Presupuestal y Eficiencia del Gasto Público  ","Necesidades MHCP","2. Racionalización de trámites","1.2. Construcción del Mapa de Riesgos de Corrupción","Deuda","Financiero","2.Plan Anual de Adquisiciones","Ordenamiento del territorio alrededor del agua y justicia ambiental","•    Objetivo 2: Hambre cero",null,null,"1.Plan Institucional de Archivos de la Entidad – PINAR"]
[null,"Gestión con valores para el resultado (Ventanilla hacia afuera)","Talento Humano","Open Hacienda","3. Rendición de cuentas","1.3. Consulta y divulgación","Inversión","Tecnológico","3.Plan Anual de Vacantes","Seguridad Humana y Justicia Social","•    Objetivo 3: Salud y bienestar",null,null,"2.Plan Anual de Adquisiciones"]
[null,"Gestión con valores para el resultado (Ventanilla hacia adentro)","Integridad","N/A","4. Servicio al Ciudadano","1.4. Monitoreo y revisión","Funcionamiento e  Inversión","Fisico","4.Plan de Previsión de Recursos Humanos","Derecho Humano a la Alimentación","•    Objetivo 4: Educación de calidad","Se cambió componente de PAAC según presentación Plan anticorrupción",null,"3.Plan Anual de Vacantes"]
[null,"Gestión con valores para el resultado (Ventanilla hacia afuera-hacia adentro)","Transparencia, Acceso a la Información Pública y Lucha Contra la Corrupción","Observaciones DAFP","5. Transparencia y Acceso a la Información","1.5. Seguimiento",null,null,"5.Plan Estratégico de Talento Humano","Internacionalización, transformación productiva para la vida y acción climática","•    Objetivo 5: Igualdad de género",null,null,"4.Plan de Previsión de Recursos Humanos"]
[null,"Evaluación de Resultados","Fortalecimiento Organizacional y Simplificación de Procesos ","Necesidad del MHCP\nPolítica ambiental ","6. Iniciativas Adicionales","2.1 Identificación de tramites",null,null,"6.Plan Institucional de Capacitación","Convergencia Regional","•    Objetivo 6: Agua limpia y saneamiento","Obsetrvación 8/5/2023 Se incluyó el subcomponete PAAC de tramites. No estaba",null,"5.Plan Estratégico de Talento Humano"]
[null,"Información y Comunicación ","Servicio al Ciudadano","Estrategia Racionalización de Tramites - \nMIPG","N/A","2.2 Priorización de tramites",null,null,"7.Plan de Incentivos Institucionales","Estabilidad macroeconómica","•    Objetivo 7: Energía asequible y no contaminante",null,null,"6.Plan Institucional de Capacitación"]
[null,"Gestión de Conocimiento e Innovación","Participación Ciudadana en la Gestión Pública","Requerimiento Archivo General de la Nación","-","2.3 Racionalización de tramites",null,null,"8.Plan de Trabajo Anual en Seguridad y Salud en el Trabajo ",null,"•    Objetivo 8: Trabajo decente y crecimiento económico",null,null,"7.Plan de Incentivos Institucionales"]
["FUIN","Control Interno ","Racionalización de Trámites","-","-","2.4 Interoperabilidad",null,null,"9.Plan Anticorrupción y de Atención al Ciudadano",null,"•    Objetivo 9: Industria, innovación e infraestructura",null,null,"8.Plan de Trabajo Anual en Seguridad y Salud en el Trabajo "]
[null,"Direccionamiento Estratégico y Evaluación de Resultados","Gestión Documental","-","-","3.1 Informar avances y resultados de la gestión con calidad y en lenguaje comprensible",null,null,"10.Plan Estratégico de Tecnologías de la Información y las Comunicaciones – PETI",null,"•    Objetivo 10: Reducción de las desigualdades",null,null,"9.Plan Anticorrupción y de Atención al Ciudadano"]
[null,"N/A","Gobierno Digital","-","-","3.2 Desarrollar escenarios de diálogo de doble vía con la ciudadanía y sus organizaciones",null,null,"11.Plan de Tratamiento de Riesgos de Seguridad y Privacidad de la Información",null,"•    Objetivo 11: Ciudades y comunidades sostenibles",null,null,"10.Plan Estratégico de Tecnologías de la Información y las Comunicaciones – PETI"]
[null,"-","Seguridad Digital","-","-","3.3 Responder a compromisos propuestos, evaluación y retroalimentación en los ejercicios de rendición de cuentas con acciones correctivas para mejora",null,null,"12.Plan de Seguridad y Privacidad de la Información ",null,"•    Objetivo 12: Producción y consumo responsables",null,null,"11.Plan de Tratamiento de Riesgos de Seguridad y Privacidad de la Información"]
[null,"-","Defensa Jurídica ","-","-","3.4. Evaluación y retroalimentación a la gestión institucional",null,null,"13.Plan Institucional de Gestión Ambiental - PIGA",null,"•    Objetivo 13: Acción por el clima ",null,null,"12.Plan de Seguridad y Privacidad de la Información "]
[null,"-","Gestión del Conocimiento y la Innovación ","-","-","3.5 Diálogo de doble vía con la ciudadania y sus organizaciones",null,null,null,null,"•    Objetivo 14: Vida submarina",null,null,"13.Plan Institucional de Gestión Ambiental - PIGA"]
[null,"-","Control Interno","-","-","4.1 Estructura administrativa y direccionamiento estratégico",null,null,null,null,"•    Objetivo 15: Vida de ecosistemas terrestres"]
[null,"-","Seguimiento y Evaluación del Desempeño Institucional ","-","-","4.2 Fortalecimiento de los canales de atención",null,null,null,null,"•    Objetivo 16: Paz, justicia e instituciones solidad"]
[null,"-","Mejora Normativa","-","-","4.3 Gestión de relacionamiento con los ciudadanos.",null,null,null,null,"•    Objetivo 17: Alianzas para lograr los objetivos"]
[null,"-","Gestión de Información Estadística ","-","-","4.4 Conocimiento al servicio al ciudadano."]
[null,"-","Compras y contratación pública ","-","-","4.5 Evaluación de gestión y medición de la percepción ciudadana."]
[null,"-","N/A","-","-","4.6 Talento Humano"]
[null,"-","Planeación Institucional y Seguimiento  y Evaluación del Desempeño Institucional","-","-","5.1. Lineamientos de Transparencia Activa"]
[null,"-","Transparencia -Participación Ciudadana - Racionalización de Trámites - Servicio al Ciudadano","-","-","5.2. Lineamientos de Transparencia Pasiva"]
[null,"-","Talento Humano e Integridad ","-","-","5.3. Elaboración de los Instrumentos de Gestión de la Información"]
[null,"-","Gobierno Digital y Seguridad Digital","-","-","5.4. Gestión Documental"]
[null,"-","Planeación Institucional-Participación Ciudadana en la Gestión Pública\n","-","-","5.5. Monitoreo del Acceso a\nla Información Pública"]
[null,"-","Transparencia -Participación Ciudadana- Servicio al Ciudadano- Racionalización de Trámites","-","-","5.6 Tranparencia Colaborativa"]
[null,"-","Fortalecimiento Organizacional y Simplificación de Procesos-","-","-","N/A"]
[null,"-","Fortalecimiento Organizacional y Simplificación de Procesos-Seguimiento  y Evaluación del Desempeño Institucional","-","-","-"]
[null,null,"Fortalecimiento Organizacional y Simplificación de Procesos-Seguridad Digital - Racionalización de Trámites","-","-","-"]

{"sheet":"Indicadores","index":4,"n_rows":42,"n_cols":13,"rows_kept":42,"cut":false,"hidden":false,"merged":[[3,5,3,9],[43,1,43,11],[44,1,44,11]]}
[]
[]
[]
[null,null,null,null,null,"Metas"]
[null,"N°","Objetivo Estratégico","Iniciativa Estratégica","Nombre del Indicador","2023","2024","2025","2026","Cuatrienio","Entidad responsable","Incluido en bases PND","Observaciones"]
[null,1,"GM1.Lograr la sostenibilidad fiscal a través del recaudo, control efectivo y generación de cultura de la legalidad ","-","SH_GM1_2023_2026_Ind1 Nuevos cotizantes cubiertos en el Sistema de Seguridad Social (SINERGIA)",270095,571203,571203,587499,2000000,"UGPP","SI","Indicador asociado PND 2022-2026"]
[null,2,"GM1.Lograr la sostenibilidad fiscal a través del recaudo, control efectivo y generación de cultura de la legalidad ","-","SH_GM1_2023_2026_Ind2 Recaudo neto como porcentaje del PIB (SINERGIA)",0.18099999999999999,0.17899999999999999,0.17399999999999999,0.17299999999999999,17.3,"DIAN","SI","Indicador asociado PND 2022-2026"]
[null,3,"GM1.Lograr la sostenibilidad fiscal a través del recaudo, control efectivo y generación de cultura de la legalidad ","-","SH_GM1_2023_2026_Ind3 Productos de inteligencia financiera difundidos a autoridades judiciales",180,180,180,180,null,"UIAF","SI"]
[null,4,"GM1.Lograr la sostenibilidad fiscal a través del recaudo, control efectivo y generación de cultura de la legalidad ","-","SH_GM1_2023_2026_Ind4 Recaudo Derecho de Explotación por Concepto de Juegos de Suerte y Azar de carácter Nacional",828211,862056,920069,975792,null,"COLJUEGOS","SI"]
[null,5,"GM1.Lograr la sostenibilidad fiscal a través del recaudo, control efectivo y generación de cultura de la legalidad ","SH.Ini.2023.2026.GM1.01 Implementar la ruta de la formalización","\nSH.Ini.2023.2026.GM1.01.Implementar la ruta de la formalización",0,0,0,1,null,"UGPP - DIAN","SI"]
[null,6,"GM2.Fortalecer mecanismos de financiamiento a través de inversiones temáticas o convenios de cofinanciación, aprovechando los distintos instrumentos financieros para contribuir a la mitigación y adaptación de cambio climático","-","SH_GM2_2023_2026_Ind1  Informes de sostenibilidad bajo estándares internacionales",0,0,0,1,null,"Grupo Bicentenario","SI"]
[null,7,"GM2.Fortalecer mecanismos de financiamiento a través de inversiones temáticas o convenios de cofinanciación, aprovechando los distintos instrumentos financieros para contribuir a la mitigación y adaptación de cambio climático","SH.Ini.2023.2026.GM2.01 Contribuir al enverdecimiento del sistema financiero","SH_Ini_2023_2026_GM2_01_Ind1 % de entidades de la industria de seguros, bancos, pensiones, fiduciarios e intermediarios de valores con estrategias ASG implementadas ","-",0.4,0.5,0.55000000000000004,null,"Superfinanciera de Colombia ","SI"]
[null,8,"GM2.Fortalecer mecanismos de financiamiento a través de inversiones temáticas o convenios de cofinanciación, aprovechando los distintos instrumentos financieros para contribuir a la mitigación y adaptación de cambio climático","SH.Ini.2023.2026.GM2.02 Contribuir al fortalecimiento de las capacidades sectoriales para la reducción de la vulnerabilidad ante los fenómenos de variabilidad climática","SH_Ini_2023_2026_GM2_02_Ind1 % de la definición y publicación de las actividades de la taxonomía para la adaptación al cambio climático en Colombia",0.5,0.9,1,"-",null,"Superfinanciera de Colombia ","SI"]
[null,9,"GM3. Dinamizar la banca de desarrollo y la inclusión financiera, como instrumento que incentive y estimule la competitividad, inversión, la economía popular y desarrollo social","-","SH_GM3_2023_2026_Ind2 1.000.000 de operaciones de créditos desembolsados a los actores de la Economía Popular- MACROMETA PRESIDENCIA",100000,300000,300000,300000,null,"Ministerio de Hacienda-Dirección General de Participaciones Estatales ","SI"]
[null,10,"GM3. Dinamizar la banca de desarrollo y la inclusión financiera, como instrumento que incentive y estimule la competitividad, inversión, la economía popular y desarrollo social","SH.Ini.2023.2026.GM3.01 Apoyar el desarrollo de soluciones que dinamicen la banca de desarrollo con los objetivos de inclusión crediticia financiera","SH_Ini_2023_2026_GM3_01_Ind1 % Cumplimiento de actividades de la iniciativa",0.75,0.75,0.75,0.75,null,"Grupo Bicentenario","SI"]
[null,11,"GM3. Dinamizar la banca de desarrollo y la inclusión financiera, como instrumento que incentive y estimule la competitividad, inversión, la economía popular y desarrollo social","SH.Ini.2023.2026.GM3.02 Aumentar el acceso a la educación financiera en los territorios","SH_Ini_2023_2026_GM3_02_Ind1 Colombianos que acceden de manera presencial y virtual al programa de educación financiera en los territorios. (SFC) ",10000,10000,10000,10000,"-","Superfinanciera de Colombia ","SI"]
[null,12,"GM3. Dinamizar la banca de desarrollo y la inclusión financiera, como instrumento que incentive y estimule la competitividad, inversión, la economía popular y desarrollo social","SH.Ini.2023.2026.GM3.02 Aumentar el acceso a la educación financiera en los territorios","SH_Ini_2023_2026_GM3_02_Ind2 Capacitar el 100% de las cooperativas inscritas a FOGACOOP en temas de educación e inclusión financiera",500,500,500,500,null,"FOGACOOP","SI"]
[null,13,"GM3. Dinamizar la banca de desarrollo y la inclusión financiera, como instrumento que incentive y estimule la competitividad, inversión, la economía popular y desarrollo social","SH.Ini.2023.2026.GM3.03 Crear un marco normativo que promueva un sector solidario de ahorro y crédito dinámico, resiliente e inclusivo.","SH_Ini_2023_2026_GM3_03_Ind1 % de implementación de las acciones programadas para el cuatrienio de la hoja de ruta  ",0.2,0.5,0.7,1,null,"Unidad de Proyección Normativa y Estudios de Regulación Financiera - URF","SI"]
[null,14,"GM3. Dinamizar la banca de desarrollo y la inclusión financiera, como instrumento que incentive y estimule la competitividad, inversión, la economía popular y desarrollo social","SH.Ini.2023.2026.GM3.04 Potencializar sinergias entre entidades financieras públicas, para aprovechar las economías de escala y servicios complementarios.","SH_Ini_2023_2026_GM3_04_Ind1 Posición número 3 del holding como grupo financiero del país","-","-","-",1,null,"Grupo Bicentenario","SI"]
[null,15,"GM3. Dinamizar la banca de desarrollo y la inclusión financiera, como instrumento que incentive y estimule la competitividad, inversión, la economía popular y desarrollo social","SH.Ini.2023.2026.GM3.04 Potencializar sinergias entre entidades financieras públicas, para aprovechar las economías de escala y servicios complementarios.","SH_Ini_2023_2026_GM3_04_Ind2 Socialización de 3 programas estratégicos del Grupo Bicentenario(Inclusión Financiera, Innovación y Finanzas Verdes)","-",1,1,1,null,"Grupo Bicentenario","SI"]
[null,16,"GM3. Dinamizar la banca de desarrollo y la inclusión financiera, como instrumento que incentive y estimule la competitividad, inversión, la economía popular y desarrollo social","SH.Ini.2023.2026.GM3.05 Contribuir en la disminución de desigualdad social de las familias colombianas, facilitando el acceso a programas sociales sostenibles.","SH_Ini_2023_2026_GM3_05_Ind1 $$ recursos a proyectos energéticos limpios, proyectos de infraestructura regionales y vivienda de interés social.",15000,15000,15000,15000,null,"Findeter ","SI"]
[null,18,"GM3. Dinamizar la banca de desarrollo y la inclusión financiera, como instrumento que incentive y estimule la competitividad, inversión, la economía popular y desarrollo social","SH.Ini.2023.2026.GM3.06 Contribuir a la creación de valor compartido a través de la gestión integral de activos y el fomento a la productividad  de economías populares.","SH_Ini_2023_2026_GM3_05_Ind1 Incrementar en un 10% la monetización de activos SAE - CISA ",0.02,0.03,0.03,0.02,null,"Sociedad de Activos Especiales\n\nCentral de Inversiones CISA","SI"]
[null,17,"GM3. Dinamizar la banca de desarrollo y la inclusión financiera, como instrumento que incentive y estimule la competitividad, inversión, la economía popular y desarrollo social","SH.Ini.2023.2026.GM3.06 Contribuir a la creación de valor compartido a través de la gestión integral de activos y el fomento a la productividad  de economías populares.","SH_Ini_2023_2026_GM3_05_Ind2  Activos especiales entregados para el fortalecimiento de las economías populares (SINERGIA)",30,30,30,30,120,"Sociedad de Activos Especiales","SI"]
[null,18,"GM3. Dinamizar la banca de desarrollo y la inclusión financiera, como instrumento que incentive y estimule la competitividad, inversión, la economía popular y desarrollo social","SH.Ini.2023.2026.GM3.06 Contribuir a la creación de valor compartido a través de la gestión integral de activos y el fomento a la productividad  de economías populares.","SH_Ini_2023_2026_GM3_05_Ind3 Número de proyectos estratégicos que generen valor compartido (CISA 4: 1 proyecto anual. )",1,1,1,1,null,"Central de Inversiones CISA","SI"]
[null,19,"GM3. Dinamizar la banca de desarrollo y la inclusión financiera, como instrumento que incentive y estimule la competitividad, inversión, la economía popular y desarrollo social","SH.Ini.2023.2026.GM3.06 Contribuir a la creación de valor compartido a través de la gestión integral de activos y el fomento a la productividad  de economías populares.","SH_Ini_2023_2026_GM3_05_Ind3 Número de proyectos estratégicos que generen valor compartido (SAE 4: 1 proyecto anual. )",1,1,1,1,null,"Sociedad de Activos Especiales"]
[null,20,"GM3. Dinamizar la banca de desarrollo y la inclusión financiera, como instrumento que incentive y estimule la competitividad, inversión, la economía popular y desarrollo social","SH.Ini.2023.2026.GM3.06 Contribuir a la creación de valor compartido a través de la gestión integral de activos y el fomento a la productividad  de economías populares.","SH_Ini_2023_2026_GM3_05_Ind4 Número de estrategias gestionadas para el aumento del recaudo de municipios categoría 4,5,6",0,1,0,0,null,"Central de Inversiones CISA","SI"]
[null,21,"GR1. Fortalecer los mecanismos para una cultura de transparencia y participación ciudadana en las entidades del Sector Hacienda","-","SH_GR1_2023_2026_Ind1 Propuestas de acciones que permitan mitigar la insatisfacción en la atención a los grupos de valor.",1,0,0,0,null,"MHCP (Dirección Administrativa)","SI"]
[null,22,"GR1. Fortalecer los mecanismos para una cultura de transparencia y participación ciudadana en las entidades del Sector Hacienda","SH.Ini.2023.2026.GR1.01 Diseñar e implementar estrategias para la divulgación de información y relacionamiento con el ciudadano","SH_Ini_2023_2026_GR1_01_Ind1 Estrategia de divulgación de información y relacionamiento con el ciudadano programadas y realizadas.",1,1,1,1,null,"MHCP (Dirección Administrativa)","SI"]
[null,23,"GR1. Fortalecer los mecanismos para una cultura de transparencia y participación ciudadana en las entidades del Sector Hacienda",null,"\n\nSH_Ini_2023_2026_GR1_02_Ind1 Herramientas y buenas prácticas de función disciplinaria programadas e implementadas.",1,1,1,1,null,"MHCP(Oficina de Control Disciplinario Interno)","SI"]
[null,24,"GR2. Fortalecer la gestión del conocimiento y la innovación en las entidades del Sector Hacienda","SH.Ini.2023.2026.GR2.01 Desarrollar espacios encaminados al fortalecimiento sectorial de la Política de Gestión del Conocimiento y la Innovación, de acuerdo con los lineamientos del Modelo Integrado de Planeación y Gestión - MIPG.","SH_GR2_2023_2026_Ind1 Actividades de gestión del conocimiento e innovación realizadas para conocer las mejores practicas de la política en el sector hacienda",1,1,1,1,null,"MHCP (Oficina Asesora de Planeación)","SI"]
[null,25,"GR2. Fortalecer la gestión del conocimiento y la innovación en las entidades del Sector Hacienda",null,"SH_Ini_2023_2026_GR2_01_Ind1 Espacios de fortalecimiento de la Política de Gestión del Conocimiento y la Innovación programados e implementados.",1,1,1,1,null,"MHCP (Oficina Asesora de Planeación)","SI"]
[null,26,"GR2. Fortalecer la gestión del conocimiento y la innovación en las entidades del Sector Hacienda","SH.Ini.2023.2026.GR2.02 Fortalecer la  Gestión Documental en las entidades del Sector Hacienda","SH_Ini_2023_2026_GR2_02_Ind1 Actividades de gestión documental programadas y desarrolladas en las entidades del Sector Hacienda.",2,2,2,2,null,"MHCP (Dirección Administrativa)","SI"]
[null,27,"GR3. Promover la transformación digital en las entidades del Sector para contribuir a la modernización de los procesos de entrega de productos y servicios de cada entidad","-","SH_GR3_2023_2026_Ind1 Avance en la implementación de los planes de la Política de Gobierno Digital",0.4,0.6,0.7,0.8,null,"MHCP (Dirección de Tecnología)","SI"]
[null,28,"GR3. Promover la transformación digital en las entidades del Sector para contribuir a la modernización de los procesos de entrega de productos y servicios de cada entidad",null,"SH_Ini_2023_2026_GR3_01_Ind1 % de entidades con proyectos en el DAPRE",0.4,0.5,0.6,0.8,null,"MHCP (Dirección de Tecnología)","SI"]
[null,29,"GR3. Promover la transformación digital en las entidades del Sector para contribuir a la modernización de los procesos de entrega de productos y servicios de cada entidad","SH.Ini.2023.2026.GR3.02 Definir y ejecutar estrategias para apoyar la adopción de las políticas de gobierno y seguridad digital  en las entidades del sector","SH_Ini_2023_2026_GR3_02_Ind1 %  Estrategias gobierno y seguridad digital ejecutadas",1,1,1,1,null,"MHCP (Dirección de Tecnología)","SI"]
[null,30,"GC1. Fortalecer las capacidades del talento humano y promover la cultura de integridad del Sector Hacienda",null,"SH_Ini_2023_2026_GC1_01_Ind1 Nivel del cumplimiento por año, de las tres (3) actividades programadas para le sector hacienda dentro de la Dimensión de Talento",1,1,1,1,null,"MHCP (Dirección Administrativa)","SI"]
[null,31," GC1. Fortalecer las capacidades del talento humano y promover la cultura de integridad del Sector Hacienda","SH.Ini.2023.2026.GC1.01 Desarrollar espacios encaminados al fortalecimiento sectorial de la Política de Gestión Estratégica de Talento Humano y Política de Integridad, de acuerdo con lo lineamientos del Modelo Integrado de Planeación y Gestión - MIPG."," SH_GC1_2023_2026_Ind1 Nivel del cumplimiento por año, de las tres (3) actividades programadas para le sector hacienda dentro de la Dimensión de Talento Humano",1,1,1,1,null,"MHCP (Dirección Administrativa)","SI"]
[null,32,"GC2.  Fortalecer la gestión pública a través de procesos administrativos, financieros y jurídicos del Sector Hacienda",null," SH_GC2_2023_2026_Ind1 Cumplimiento de actividades de la defensa jurídica ",1,1,1,1,null,"MHCP- Subdirección Jurídica ","SI"]
[null,33,"GC2.  Fortalecer la gestión pública a través de procesos administrativos, financieros y jurídicos del Sector Hacienda","SH.Ini.2023.2026.GC2.01 Desarrollar mecanismos para un adecuado ejercicio de defensa jurídica de las Entidades del Sector Hacienda","SH_Ini_2023_2026_GC2_01_Ind1 Documentos expedidos para fortalecer la gestión jurídica",1,0,0,0,null,"MHCP(Subdirección Jurídica)","SI"]
[null,35,null,null,"Porcentaje de Inclusión financiera para la equidad de género y economías populares. ",null,null,null,null,null,"Grupo Bicentenario - Ministerio de Hacienda","SI","Este indicador esta incluido en el indicador general  del objetivo estratégico - Gestion Misional 3"]
[null,36,null,null,"Reducción porcentual de brecha de inclusión financiera ",null,null,null,null,null,"Grupo Bicentenario - Ministerio de Hacienda","SI","Este indicador esta incluido en el indicador general  del objetivo estratégico - Gestion Misional 3"]
[null,34,"GM2.Fortalecer mecanismos de financiamiento a través de inversiones temáticas o convenios de cofinanciación, aprovechando los distintos instrumentos financieros para contribuir a la mitigación y adaptación de cambio climático","SH.Ini.2023.2026.GM2.03 Contribuir al fortalecimiento de las capacidades sectoriales para el financiamiento ambiental y climático","Porcentaje de avance del plan de acción del Plan Integral de Gestión del Cambio Climático y la Biodiversidad del Sector Hacienda (PIGCCSH+B) ",0.1,0.1,0.1,0.1,0.4,"Ministerio de Hacienda y Crédito Publico- Viceministerio Técnico","No","Indicador se presenta para aprobación."]

{"sheet":"Plan_misional","index":5,"n_rows":41,"n_cols":42,"rows_kept":41,"cut":false,"hidden":false,"merged":[[1,1,1,6],[7,38,8,40],[7,41,9,41],[8,20,8,23],[8,24,8,27],[8,28,8,30],[8,31,9,31],[7,33,8,37],[7,1,8,4],[7,5,8,15],[7,16,8,19],[7,20,7,32]]}
[]
[]
[]
[]
[]
[null,null,null,"Versión 1 aprobada mediante Comité Sectorial 13 de diciembre de 2023"]
[]
[null,"Mapa Estratégico Institucional 2023-2026",null,null,null,"Información de la tarea 2024",null,null,null,null,null,null,null,null,null,null,"Recursos necesarios para el desarrollo de la tarea",null,null,null,"Entregables 2024",null,null,null,null,null,null,null,null,null,null,null,null,"Gestión Presupuestal del Plan ",null,null,null,null,"Atributos estratégicos",null,null,"Agenda regulatoria"]
[null,null,null,null,null,null,null,null,null,null,null,null,null,null,null,null,null,null,null,null,"1er cuatrimestre 2024\nCorte 30/04/2024",null,null,null,"2do cuatrimestre 2024\nCorte 30/09/2024",null,null,null,"3er cuatrimestre 2024\nCorte 31/12/2024",null,null,"Meta 3er cuatrimestre ","Total vigencia"]
[null,"No. ","Perspectiva","Objetivo estratégico","Iniciativa ","Nombre de la Tarea\n2024","Descripción de la Tarea 2024","Nivel de la tarea","Fecha inicial ","Fecha final","Aprobador","Documentador","Recurso SMGI","Entidad Responsable","Entidad participante o de apoyo","Fuente de información de la tarea","Talento Humano","Financiero","Tecnológico","Físico","Entregable 1","Entregable 2","Entregable 3","Meta 1er cuatrimestre","Entregable 1","Entregable 2","Entregable 3","Meta 2do cuatrimestre ","Entregable 1","Entregable 2","Entregable 3",null,1,"Fuentes de Financiación ","Nombre del proyecto","Producto proyecto inversión","Apropiación Vigente","Ejecución Presupuestal (obligaciones)","Ejes transformacionales- transversales PND 2022-2026","Objetivo de Desarrollo Sostenible","Documentos Conpes"]
[null,1,"Gestión misional","GM1.Lograr la sostenibilidad fiscal a través del recaudo, control efectivo y generación de cultura de la legalidad ","SH.Ini.2023.2026.GM1.01.Implementar la ruta de la formalización","Definir los componentes de la ruta de formalización por parte de Dirección de Impuestos y Aduanas Nacionales-DIAN","Avanzar en la definición de los componentes, actores, estrategias y recursos de la ruta de formalización en Colombia","Táctico","2024-01-01","2024-12-31","Constanza del Pilar Rodriguez Páez","Constanza del Pilar Rodriguez Páez","Constanza del Pilar Rodriguez Páez","DIAN","UGPP\nMinTrabajo \nEETT (Entidades Territoriales)","Perfeccionamiento Planeación Estratégica ",null,null,"X",null,"Definición de cronograma","N/A","N/A",0.25,"Especificación estrategia",null,null,0.35,"Informe final y evaluación de intervención para la ruta de la formalización",null,null,0.4,{"$f":"X11+AB11+AF11","v":1},"N/A","N/A","N/A","N/A","N/A","2-Seguridad Humana y Justicia Social","•    Objetivo 8: Trabajo decente y crecimiento económico","3975 Política Nacional para la Transformación Digital e Inteligencia Artificial","SI fila #20 la norma trata de modificaciones al régimen simple de tributación-SIMPLE que se refiere al impuesto sobre la renta y al impuesto de industria y comercio."]
[null,2,"Gestión misional","GM1.Lograr la sostenibilidad fiscal a través del recaudo, control efectivo y generación de cultura de la legalidad ","SH.Ini.2023.2026.GM1.01.Implementar la ruta de la formalización","Desarrollar un piloto de la ruta de formalización por parte de la Unidad de Gestión Pensional y Parafiscales - UGPP.","Desarrollar un piloto de la ruta de formalización por parte de la Unidad de Gestión Pensional y Parafiscales - UGPP, que permita la aplicación de los componentes definidos de la ruta de formalización, la revisión y ajustes en la implementación piloto de la ruta.","Estratégico","2024-02-01","2024-12-31","Juan Carlos Segura Ortiz","Germán Vega\n","Andryu Mendoza\n","Unidad de Gestión Pensional y Parafiscales - UGPP","Dirección de Impuestos y Aduanas Nacionales - DIAN","Artículos  Plan Nacional de Desarrollo ","x",null,null,null,"Definición de entidades y/o gremios que operan en entes territoriales, para la intervención con el piloto.","N/A","N/A",0.25,"Documento con avance parcial de la aplicación del piloto.",null,null,0.35,"Documento con avance parcial de la aplicación del piloto.",null,null,0.4,1,"Funcionamiento","N/A","N/A","N/A","N/A","N/A","•    Objetivo 8: Trabajo decente y crecimiento económico","N/A","N/A"]
[null,3,"Gestión misional","GM1.Lograr la sostenibilidad fiscal a través del recaudo, control efectivo y generación de cultura de la legalidad ","SH.Ini.2023.2026.GM1.01.Implementar la ruta de la formalización","Desarrollar un piloto de la ruta de formalización por parte de DIAN","Avanzar, revisar y ajustar la implementación del piloto de la ruta de formalización en Colombia","Táctico","2024-01-01","2024-12-31","Constanza del Pilar Rodriguez Páez","Constanza del Pilar Rodriguez Páez","Constanza del Pilar Rodriguez Páez","DIAN","UGPP\nMinTrabajo \nEETT (Entidades Territoriales)","Perfeccionamiento Planeación Estratégica ",null,null,"X",null,"Definición de cronograma","N/A","N/A",0.25,"Especificación estrategia",null,null,0.35,"Informe final y evaluación de intervención para la ruta de la formalización",null,null,0.4,1,null,"N/A","N/A","N/A","N/A","2-Seguridad Humana y Justicia Social","•    Objetivo 8: Trabajo decente y crecimiento económico","3975 Política Nacional para la Transformación Digital e Inteligencia Artificial","SI fila #20 la norma trata de modificaciones al régimen simple de tributación-SIMPLE que se refiere al impuesto sobre la renta y al impuesto de industria y comercio."]
[null,4,"Gestión misional","GM1.Lograr la sostenibilidad fiscal a través del recaudo, control efectivo y generación de cultura de la legalidad ","SH.Ini.2023.2026.GM1.01.Implementar la ruta de la formalización","Avanzar en la implementación de la ruta, según los resultados del año anterior por parte de DIAN","Avance en la implementación de la ruta de formalización en diferentes territorios y personas beneficiadas por las entidades participantes","Táctico","2024-01-01","2024-12-31","Constanza del Pilar Rodriguez Páez","Constanza del Pilar Rodriguez Páez","Constanza del Pilar Rodriguez Páez","DIAN","UGPP\nMinTrabajo \nEETT (Entidades Territoriales)","Perfeccionamiento Planeación Estratégica ","x",null,null,null,"Definición de cronograma","N/A","N/A",0.25,"Definición de cronograma",null,null,0.35,null,null,null,0.4,1,"N/A","N/A","N/A","N/A","N/A","2-Seguridad Humana y Justicia Social","•    Objetivo 8: Trabajo decente y crecimiento económico","3975 Política Nacional para la Transformación Digital e Inteligencia Artificial","SI fila #20 la norma trata de modificaciones al régimen simple de tributación-SIMPLE que se refiere al impuesto sobre la renta y al impuesto de industria y comercio."]
[null,5,"Gestión misional","GM1.Lograr la sostenibilidad fiscal a través del recaudo, control efectivo y generación de cultura de la legalidad ","SH.Ini.2023.2026.GM1.01.Implementar la ruta de la formalización","Ampliar y/o articular la implementación de la ruta de la formalización, por parte de la Unidad de Gestión Pensional y Parafiscales - UGPP, según los resultados del año anterior.","Ampliar y/o articular la implementación de la ruta de la formalización, por parte de la Unidad de Gestión Pensional y Parafiscales - UGPP, según los resultados del año anterior, en diferentes territorios del país.","Estratégico","2024-01-01","2024-12-31","Juan Carlos Segura Ortiz","Germán Vega\n","Andryu Mendoza\n","Unidad de Gestión Pensional y Parafiscales - UGPP","Dirección de Impuestos y Aduanas Nacionales - DIAN","Artículos  Plan Nacional de Desarrollo ","x",null,null,null,"Relación de los territorios en los que se ha implementado la ruta de formalización y la descripción de las personas beneficiadas (primera entrega).","N/A","N/A",0.25,"Definición de cronograma",null,null,0.35,"Relación de los territorios en los que se ha implementado la ruta de formalización y la descripción de las personas beneficiadas (tercera entrega).",null,null,0.4,1,"Funcionamiento","N/A","N/A","N/A","N/A","N/A","•    Objetivo 8: Trabajo decente y crecimiento económico","N/A","N/A"]
[null,6,"Gestión misional","GM1.Lograr la sostenibilidad fiscal a través del recaudo, control efectivo y generación de cultura de la legalidad ","SH.Ini.2023.2026.GM1.01.Implementar la ruta de la formalización","Ampliación y/o articulación según los resultados del año anterior por parte de DIAN","Avance en la implementación de la ruta de formalización en diferentes territorios y personas beneficiadas por las entidades participantes","Táctico","2024-01-01","2024-12-31","Constanza del Pilar Rodriguez Páez","Constanza del Pilar Rodriguez Páez","Constanza del Pilar Rodriguez Páez","DIAN","UGPP\nMinTrabajo \nEETT (Entidades Territoriales)","Perfeccionamiento Planeación Estratégica ",null,null,null,"x","Definición de cronograma","N/A","N/A",0.25,"Definición de cronograma",null,null,0.35,null,null,null,0.4,1,"N/A","N/A","N/A","N/A","N/A","2-Seguridad Humana y Justicia Social","•    Objetivo 8: Trabajo decente y crecimiento económico","3975 Política Nacional para la Transformación Digital e Inteligencia Artificial","SI fila #20 la norma trata de modificaciones al régimen simple de tributación-SIMPLE que se refiere al impuesto sobre la renta y al impuesto de industria y comercio."]
[null,7,"Gestión misional","GM2. Implementar y fortalecer instrumentos económicos y financieros a través de inversiones temáticas o convenios de cofinanciación, para contribuir al cambio climático y  al uso sostenible de la biodiversidad","SH.Ini.2023.2026.GM2.02 Contribuir al fortalecimiento de las capacidades sectoriales para la reducción de la vulnerabilidad ante los fenómenos de variabilidad climática","Desarrollar consultas para validar y ajustar las actividades/ activos/practicas /principios","Avanzar en la definición de la taxonomía para la adaptación al cambio climático ","Estratégico","2024-02-01","2024-12-31","Fernando Castro Coral","Miguel Felipe Zarate","Sergio Esteban Varela","Superintendencia Financiera de Colombia","Superintendencia Financiera de Colombia","Otras","x",null,"x","x","Evidencias de reuniones y otros insumos con stakeholders centrales y con expertos técnicos \n","N/A","N/A",0.25,"Versión preliminar del marco de contribución sustancial al objetivo de adaptación al cambio climático",null,null,0.35,"Evidencias de publicación a consulta del marco de contribución sustancial al objetivo de adaptación al cambio climático",null,null,0.4,1,"Funcionamiento","N/A","N/A","N/A","N/A","4-Transformación productiva, internacionalización y a acción climática","•    Objetivo 13: Acción por el clima ","4058 Política pública para reducir las condiciones de riesgo de desastres y adaptarse a los fenómenos de variabilidad climática"]
[null,8,"Gestión misional"," GM3. Dinamizar la banca de desarrollo y la inclusión financiera, como instrumento que incentive y estimule la competitividad, inversión, la economía popular y desarrollo social","SH.Ini.2023.2026.GM3.02 Aumentar el acceso a la educación financiera en los territorios","Consolidar el programa de educación financiera ","Consolidar el programa de educación financiera para el acceso de manera presencial y virtual al programa de educación financiera en los territorios. ","Estratégico","2024-02-01","2024-12-31","Fernando Castro Coral","Miguel Felipe Zarate","Sergio Esteban Varela","Superintendencia Financiera de Colombia","Superintendencia Financiera de Colombia","Otras","x","x","x","x","Actividades realizadas en las Casas o Rutas del Consumidor (Red Nacional de Protección) ó  Charlas Especiales de Protección al Consumidor Financiero\n","N/A","N/A",0.25,null,null,null,0.35,null,null,null,0.4,1,"Inversión","N/A","N/A","N/A","N/A","2-Seguridad Humana y Justicia Social","•    Objetivo 8: Trabajo decente y crecimiento económico","4005 Política Nacional de Inclusión y Educación económica y Financiera."]
[null,9,"Gestión misional","GM2. Implementar y fortalecer instrumentos económicos y financieros a través de inversiones temáticas o convenios de cofinanciación, para contribuir al cambio climático y  al uso sostenible de la biodiversidad","SH.Ini.2023.2026.GM2.02 Contribuir al fortalecimiento de las capacidades sectoriales para la reducción de la vulnerabilidad ante los fenómenos de variabilidad climática","Implementar el reporte de sostenibilidad bajo estándar internacional certificado (GRI, TCFD (Task Force Climate Related Financiar Disclosures) ","Implementar reporte de sostenibilidad de Grupo Bicentenario, alineado con los reportes de las sociedades adscritas al mismo.","Táctico","2024-02-01","2024-12-31","Javier Perez Diaz","Javier Perez Diaz","-","Grupo Bicentenario",null,"Otras","x",null,null,null,"N/A","N/A","N/A",0.25,"N/A","N/A","N/A",0.35,"  -","  -","Capacitar al equipo del Grupo Bicentenario en los estándares internacionales de reporte",0.4,1,"  -","N/A","N/A","N/A","N/A","N/A","N/A","Otra","N/A"]
[null,10,"Gestión misional","GM2. Implementar y fortalecer instrumentos económicos y financieros a través de inversiones temáticas o convenios de cofinanciación, para contribuir al cambio climático y  al uso sostenible de la biodiversidad","SH.Ini.2023.2026.GM2.03 Contribuir al fortalecimiento de las capacidades sectoriales para el financiamiento ambiental y climático","Publicar e implementar el Plan Integral de Gestión de Cambio Climático y Biodiversidad del Sector Hacienda (PIGCCSH+B)","Publicar el documento final del PIGCCSH+B e implementar las acciones definidas en el plan de acción para el año 2024","Estratégico","2024-01-01","2024-12-31","Maria Fernanda Valdés","Daniela Saade","Laura Moreno","MHCP-Viceministerio Técnico","Superintendencia Financiera de Colombia\n\nUnidad de Proyección Normativa y Estudios de Regulación Financiera - URF\n\nDirección Administrativa de Impuestos y Aduanas Nacionales\n\nGrupo Bicentenario y entidades que hacen parte del grupo empresarial-","Otras","x",null,null,null,"Documento final del PIGCCSH+B publicado","N/A","N/A",0.25,"Matriz del Plan de Acción del PIGCCSH+B",null,null,0.35,"Convocatoria Coordinador PIGCCSH+B","Porcentaje de avance del plan de acción del PIGCCSH+B",null,0.4,1,null,"N/A","N/A","N/A","N/A",null,null,null,"N/A"]
[null,11,"Gestión misional"," GM3. Dinamizar la banca de desarrollo y la inclusión financiera, como instrumento que incentive y estimule la competitividad, inversión, la economía popular y desarrollo social","SH.Ini.2023.2026.GM3.01 Apoyar el desarrollo de soluciones que dinamicen la banca de desarrollo con los objetivos de inclusión crediticia financiera","Diseñar, implementar y socializar el Modelo de Financiamiento para la Democratización del Crédito","Diseñar, implementar y socializar el Modelo de Financiamiento para la Democratización del Crédito, conformado por los siguientes productos: Línea de crédito Economía Popular\nMecanismos de crédito y de garantías por oferta\nFinagroEduca 2.0\nProyectos con enfoque territorial estructurados","Estratégico","2024-01-01","2024-09-30","Juan Carlos Restrepo González","Mónica Rangel Cobos","Ma. Helena Reyes Donado","FINAGRO","Banco Agrario de Colombia - BAC\n\nComisión Nacional de Crédito Agropecuario - CNCA\n\nBanca de las Oportunidades","Otras","x","x","x"," ","Resultado del Número de Operaciones de la LEM EPC","N/A","N/A",0.25,"Avance de la estructuración del  Modelo de Financiamiento para la Democratización del Crédito"," "," ",0.35,"Avance de la estructuración del  Modelo de Financiamiento para la Democratización del Crédito"," "," ",0.4,1,"Otra","N/A","N/A","N/A","N/A","5-Convergencia Regional","•    Objetivo 2: Hambre cero"," ","N/A"]
[null,12,"Gestión misional"," GM3. Dinamizar la banca de desarrollo y la inclusión financiera, como instrumento que incentive y estimule la competitividad, inversión, la economía popular y desarrollo social","SH.Ini.2023.2026.GM3.01 Apoyar el desarrollo de soluciones que dinamicen la banca de desarrollo con los objetivos de inclusión crediticia financiera","Articular con las entidades que integran el Grupo Bicentenario, productos y/o servicios  para la atención de la Economía Popular","Adelantar las acciones requeridas para articular entre las entidades que integran el Grupo Bicentenario, productos y/o servicios en los sectores definidos como estratégicos por parte del Gobierno nacional","Estratégico","2024-01-01","2024-12-31","Sebastián Echeverri Álvarez ","Sebastián Echeverri Álvarez ","Sebastián Echeverri Álvarez ","Grupo Bicentenario","Banco Agrario de Colombia, Bancóldex, FDN, Findeter, Finagro, FNG, Previsora, Positiva, Fiduprevisora, Fiducoldex, Fiduagraria, FNA, ENTerritorio,","x","x","x"," ",null," "," ","Avance mesas de trabajo para la estructuración productos y/o servicios",0.25," "," ","Documento técnico que incluya el resultado de las mesas de trabajo para la estructuración productos y/o servicios",0.35," "," ",0.4,0.4,1,"N/A","N/A","N/A","N/A","N/A","2. Seguridad humana y justicia social\nB. Políticas de inclusión productiva con trabajo decente y apoyo al\nemprendimiento.\n2. Inserción, reinserción, reconversión laboral y transformación\nProductiva\nf. Generación de alternativas de financiamiento.","•    Objetivo 16: Paz, justicia e instituciones solidad","N/A","N/A"]
[null,13,"Gestión misional"," GM3. Dinamizar la banca de desarrollo y la inclusión financiera, como instrumento que incentive y estimule la competitividad, inversión, la economía popular y desarrollo social","SH.Ini.2023.2026.GM3.01 Apoyar el desarrollo de soluciones que dinamicen la banca de desarrollo con los objetivos de inclusión crediticia financiera","Fortalecer la gobernanza de las entidades que integran el Grupo Bicentenario","Implementación de las reformas estatuarias y de documentos requeridos para alcanzar los propósitos del Decreto Ley 1962 de 2023","Estratégico","2024-01-01","2024-12-31","Sebastián Echeverri Álvarez ","Sebastián Echeverri Álvarez ","Grupo Bicentenario","Banca de las Oportunidades","Banco Agrario de Colombia, Bancóldex, FDN, Findeter, Finagro, FNG, Previsora, Positiva, Fiduprevisora, Fiducoldex, Fiduagraria, FNA, ENTerritorio,","x","x","x",null,null,null,null,"Actas de comité jurídico sobre avances de implementación ",0.25,null,null,"Actas de asambleas de accionistas ",0.35,null,null,0.4,0.4,1,"N/A","N/A","N/A","N/A","N/A","2. Seguridad humana y justicia social\nB. Políticas de inclusión productiva con trabajo decente y apoyo al\nemprendimiento.\n2. Inserción, reinserción, reconversión laboral y transformación\nProductiva\nf. Generación de alternativas de financiamiento.","•    Objetivo 16: Paz, justicia e instituciones solidad","N/A","N/A"]
[null,14,"Gestión misional"," GM3. Dinamizar la banca de desarrollo y la inclusión financiera, como instrumento que incentive y estimule la competitividad, inversión, la economía popular y desarrollo social","SH.Ini.2023.2026.GM3.01 Apoyar el desarrollo de soluciones que dinamicen la banca de desarrollo con los objetivos de inclusión crediticia financiera","Propiciar  la Inclusión  financiera de la Economía Popular en especial de los micronegocios a través del portafolio de productos financieros de Bancóldex ","Atender las necesidades de financiación de la Economía Popular en especial las de los micronegocios a través del portafolio de productos financieros de Bancóldex ","Estratégico","2024-01-01","2026-12-31","María José Naranjo","Jorge Arcieri","Oswaldo Diaz Alvarez","Bancóldex","-","Otras","x",null,null,null,null,"Informe con el número de unidades productivas pertenecientes a la Economía Popular, que son atendidas a través de todo el portafolio de productos financieros de Bancóldex",null,0.25,null,"Informe con el número de unidades productivas pertenecientes a la Economía Popular, que son atendidas a través de todo el portafolio de productos financieros de Bancóldex",null,0.35,null,null,null,0.4,1,"N/A","N/A","N/A","N/A","N/A","4-Transformación productiva, internacionalización y a acción climática",null,"N/A","N/A"]
[null,15,"Gestión misional"," GM3. Dinamizar la banca de desarrollo y la inclusión financiera, como instrumento que incentive y estimule la competitividad, inversión, la economía popular y desarrollo social","SH.Ini.2023.2026.GM3.01 Apoyar el desarrollo de soluciones que dinamicen la banca de desarrollo con los objetivos de inclusión crediticia financiera","Financiar las inversiones sostenibles de las Mipymes en proyectos de economía circular, bioeconomía y/o gestión del cambio climático.","Crear líneas de crédito para impulsar las inversiones sostenibles de las Mipymes  en  proyectos de economía circular, bioeconomía y/o gestión del cambio climático.","Estratégico","2024-01-01","2026-12-31","María José Naranjo","María Fernanda Manrique","Oswaldo Diaz Alvarez","Bancóldex",null,"Otras","x",null,null,null,null,"Informe con el valor de los desembolsos realizados a través de las línea de crédito de Bancóldex  cuyo objetivo sea impulsar las inversiones sostenibles de las Mipymes  en  proyectos de economía circular, bioeconomía y/o gestión del cambio climático.",null,0.25,null,"Informe con el valor de los desembolsos realizados a través de las línea de crédito de Bancóldex  cuyo objetivo sea impulsar las inversiones sostenibles de las Mipymes  en  proyectos de economía circular, bioeconomía y/o gestión del cambio climático.",null,0.35,null,null,null,0.4,1,"N/A","N/A","N/A","N/A","N/A","4-Transformación productiva, internacionalización y a acción climática",null,"N/A","N/A"]
[null,16,"Gestión misional"," GM3. Dinamizar la banca de desarrollo y la inclusión financiera, como instrumento que incentive y estimule la competitividad, inversión, la economía popular y desarrollo social","SH.Ini.2023.2026.GM3.01 Apoyar el desarrollo de soluciones que dinamicen la banca de desarrollo con los objetivos de inclusión crediticia financiera","Financiar  la modernización empresarial para mejorar  la competitividad del aparato productivo colombiano.\n\n","Crear líneas  de crédito para impulsar la modernización empresarial  y la competitividad del aparato productivo colombiano.","Estratégico","2024-01-01","2026-12-31","María José Naranjo","Jorge Acieri","Oswaldo Diaz Alvarez","Bancóldex",null,"Otras","x",null,null,null,null,"Informe con el valor de los desembolsos realizados  a través de las líneas de crédito de Bancóldex orientadas a financiar modernización empresarial y a consolidar el aparato productivo colombiano.",null,0.25,null,"Informe con el valor de los desembolsos realizados  a través de las líneas de crédito de Bancóldex orientadas a financiar modernización empresarial y a consolidar el aparato productivo colombiano.",null,0.35,null,null,null,0.4,1,"N/A","N/A","N/A","N/A","N/A","4-Transformación productiva, internacionalización y a acción climática",null,"N/A","N/A"]
[null,17,"Gestión misional"," GM3. Dinamizar la banca de desarrollo y la inclusión financiera, como instrumento que incentive y estimule la competitividad, inversión, la economía popular y desarrollo social","SH.Ini.2023.2026.GM3.01 Apoyar el desarrollo de soluciones que dinamicen la banca de desarrollo con los objetivos de inclusión crediticia financiera","Financiar los planes y proyectos de internacionalización de los empresarios y de pequeñas unidades productivas que hagan parte de encadenamientos de exportación​","Crear líneas  de crédito para el financiamiento de los planes y proyectos de internacionalización de los empresarios y de pequeñas unidades productivas que hagan parte de encadenamientos de exportación​","Estratégico","2024-01-01","2026-12-31","María José Naranjo","Jorge Acieri","Oswaldo Diaz Alvarez","Bancóldex",null,"Otras","x",null,null,null,null,"Informe con el valor de los desembolsos realizados  a través de las líneas  de crédito de Bancóldex creadas para el financiamiento de los planes y proyectos de internacionalización de los empresarios y  pequeñas unidades productivas",null,0.25,null,"Informe con el valor de los desembolsos realizados  a través de las líneas  de crédito de Bancóldex creadas para el financiamiento de los planes y proyectos de internacionalización de los empresarios y  pequeñas unidades productivas",null,0.35,null,null,null,0.4,1,"N/A","N/A","N/A","N/A","N/A","4-Transformación productiva, internacionalización y a acción climática",null,"N/A","N/A"]
[null,18,"Gestión misional"," GM3. Dinamizar la banca de desarrollo y la inclusión financiera, como instrumento que incentive y estimule la competitividad, inversión, la economía popular y desarrollo social","SH.Ini.2023.2026.GM3.01 Apoyar el desarrollo de soluciones que dinamicen la banca de desarrollo con los objetivos de inclusión crediticia financiera","Contribuir con la  inclusión financiera de las  mujeres empresarias.","Atender las necesidades de financiación de las mujeres empresarias a través del portafolio de productos financieros de Bancóldex ","Estratégico","2024-01-01","2026-12-31","María José Naranjo","María Fernanda Manrique","Oswaldo Diaz Alvarez","Bancóldex",null,"Otras","x",null,null,null,null,"Informe con el valor de los desembolsos realizados a  mujeres empresarias a través del portafolio de productos financieros de Bancóldex ",null,0.25,null,"Informe con el valor de los desembolsos realizados a  mujeres empresarias a través del portafolio de productos financieros de Bancóldex ",null,0.35,null,null,null,0.4,1,"N/A","N/A","N/A","N/A","N/A","4-Transformación productiva, internacionalización y a acción climática",null,"N/A","N/A"]
[null,19,"Gestión misional"," GM3. Dinamizar la banca de desarrollo y la inclusión financiera, como instrumento que incentive y estimule la competitividad, inversión, la economía popular y desarrollo social","SH.Ini.2023.2026.GM3.02 Aumentar el acceso a la educación financiera en los territorios","Profundizar el trabajo de educación e inclusión financiera de los administradores y funcionarios de las cooperativas para que fortalezcan cada vez más su gestión de riesgos ","Consolidación del programa de educación financiera para las cooperativas y sus ahorradores","Táctico","2024-03-01","2024-12-31","Adriana Mcallister Braidy","Karen Sofia Cotame Vanegas","Liliana María Baquero Neira","FOGACOOP","N/A","N/A","x",null,null,null,"Plan de Acción Jornadas Regionales "," "," ",0.25,"Orientación de las Jornadas Regionales"," "," ",0.35,"Ejecución de las jornadas regionales de capacitación: Listados de asistencia"," "," ",0.4,1,"Funcionamiento","N/A","N/A","N/A","N/A","2-Seguridad Humana y Justicia Social","•    Objetivo 8: Trabajo decente y crecimiento económico","N/A","N/A"]
[null,20,"Gestión misional"," GM3. Dinamizar la banca de desarrollo y la inclusión financiera, como instrumento que incentive y estimule la competitividad, inversión, la economía popular y desarrollo social","SH.Ini.2023.2026.GM3.03 Crear un marco normativo que promueva un sector solidario de ahorro y crédito dinámico, resiliente e inclusivo.","Implementar la hoja de ruta del sector solidario ","Desarrollar las acciones programadas para la vigencia de acuerdo con la hoja de ruta establecida.","Estratégico","2024-01-01","2024-12-31","Paola Patricia Rodriguez","Derenis Danielis Lopez Meza","Daissy Tatiana Santos Yate ","Unidad de Proyección Normativa y Estudios de Regulación Financiera - URF","Otras","Otras","x","x","x","x","Soportes de implementación de la hoja de ruta para el periodo",null,null,0.25,"Soportes de implementación de la hoja de ruta para el periodo",null,null,0.35,"Soportes de implementación de la hoja de ruta para el periodo",null,null,0.4,1,"Funcionamiento","N/A","N/A","N/A","N/A",null,null,"4051 Política pública para el desarrollo de la economía solidaria","N/A"]
[null,21,"Gestión misional"," GM3. Dinamizar la banca de desarrollo y la inclusión financiera, como instrumento que incentive y estimule la competitividad, inversión, la economía popular y desarrollo social","SH.Ini.2023.2026.GM3.05 Contribuir en la disminución de desigualdad social de las familias colombianas, facilitando el acceso a programas sociales sostenibles.","Establecer alianzas con intermediarios financieros (bancos comerciales y cooperativas financieras y de ahorro y crédito) que permitan la colocación de los recursos en vivienda VIS y en proyectos de energías limpias y sostenibles, especialmente en entidades territoriales de categorías 3, 4, 5 y 6","Establecer alianzas con intermediarios financieros (bancos comerciales y cooperativas financieras y de ahorro y crédito) que permitan la colocación de los recursos en vivienda VIS y en proyectos de energías limpias y sostenibles, especialmente en entidades territoriales de categorías 3, 4, 5 y 6. identificar un aliado estratégico con un plan definido e incrementar la vinculación de cooperativas de ahorro y crédito como intermediarios financieros.","Estratégico","2024-01-01","2024-12-31","Laura Mercedes Peña Rodríguez","Jorge Luis Giraldo Gonzalez",null,"Findeter S.A.",null,"Aplicativo Financianet Findeter","X",null,null,null,"Informe de Intermediarios Financieros, destacando las cooperativas de ahorro y crédito","Informe de desembolsos asociados a VIS y proyectos de energías limpias",null,0.25,"Informe de Intermediarios Financieros, destacando las cooperativas de ahorro y crédito","Informe de desembolsos asociados a VIS y proyectos de energías limpias",null,0.35,"Informe de Intermediarios Financieros, destacando las cooperativas de ahorro y crédito","Informe de desembolsos asociados a VIS y proyectos de energías limpias",null,0.4,1,"N.A.","N/A","N/A","N/A","N/A","Eje No.4 Transformación productiva, internacionalización y acción climática\nEje No. 5 Convergencia regional (déficit habitacional)","1, 3, 7, 8, 9, 11, 12,  13,  ","N.A.","N/A"]
[null,22,"Gestión misional"," GM3. Dinamizar la banca de desarrollo y la inclusión financiera, como instrumento que incentive y estimule la competitividad, inversión, la economía popular y desarrollo social","SH.Ini.2023.2026.GM3.06Contribuir a la creación de valor compartido a través de la gestión integral de activos y el fomento a la productividad  de economías populares. ","Diseñar los lineamientos metodológicos para la destinación de activos al fomento de la economía popular","Realizar el Planteamiento metodológico que se implementará para la destinación de activos que fomenten las economías populares.","Estratégico","2024-01-02","2024-12-31","Eloísa Vargas","Eloísa Vargas","N/A","SAE"," ","Perfeccionamiento Planeación Estratégica ","X",null,null,null,"P-DT4-101 Procedimiento de destinación provisional de bienes actualizado."," "," ",0.25,"M-DF2-045 Manual de destinaciones y donaciones de inmuebles y muebles por leyes especiales actualizado.","P-DF2-121 Procedimiento destinación definitiva de bienes inmuebles a entidades beneficiadas leyes especiales actualizado."," ",0.35,"P-DT4-114 Procedimiento para el control de destinación y depósito provisional actualizado.","P-DF2-173 Procedimiento para la destinación definitiva de bienes muebles actualizado."," ",0.4,1,"Funcionamiento","N/A","N/A","N/A","N/A","2-Seguridad Humana y Justicia Social","•    Objetivo 10: Reducción de las desigualdades","4042 Política nacional antilavado de activos, contra la financiación del terrorismo y contra la financiación de la proliferación de armas de destrucción masiva.","N/A"]
[null,23,"Gestión misional"," GM3. Dinamizar la banca de desarrollo y la inclusión financiera, como instrumento que incentive y estimule la competitividad, inversión, la economía popular y desarrollo social","SH.Ini.2023.2026.GM3.06Contribuir a la creación de valor compartido a través de la gestión integral de activos y el fomento a la productividad  de economías populares. ","Destinar activos para el fomento de la economía popular","Entregar activos en esquemas de destinación provisional a comunidades, organizaciones comunitarias, colectivos y demás grupos de interés que trabajen en pro de la economía popular.","Estratégico","2024-01-02","2024-12-31","Eloísa Vargas","Eloísa Vargas","N/A","SAE"," ","Perfeccionamiento Planeación Estratégica ","X",null,null,null,"Informe de bienes entregados en el 1er cuatrimestre 2024"," "," ",0.25,"Informe de bienes entregados en el 2do cuatrimestre 2024"," "," ",0.35,"Informe de bienes entregados en el  3er cuatrimestre 2024","Informe de seguimiento de resultados de entregas priorizadas y realizadas en el 2024 (Proyectos especiales)"," ",0.4,1,"Funcionamiento","N/A","N/A","N/A","N/A","2-Seguridad Humana y Justicia Social","•    Objetivo 10: Reducción de las desigualdades","4042 Política nacional antilavado de activos, contra la financiación del terrorismo y contra la financiación de la proliferación de armas de destrucción masiva.","N/A"]
[null,24,"Gestión misional"," GM3. Dinamizar la banca de desarrollo y la inclusión financiera, como instrumento que incentive y estimule la competitividad, inversión, la economía popular y desarrollo social","SH.Ini.2023.2026.GM3.06Contribuir a la creación de valor compartido a través de la gestión integral de activos y el fomento a la productividad  de economías populares. ","Estructurar y/o implementar proyectos que generen valor compartido, social, productivo y/o ambiental. (SAE )","Proyectos estratégicos para iniciativas comunitarias y/o de entidades públicas que fortalezcan el tejido social en el marco de la Paz Total.","Estratégico","2024-01-02","2024-12-31","Eloísa Vargas","Eloísa Vargas","N/A","SAE"," ","Perfeccionamiento Planeación Estratégica ","X",null,null,null,"Informe de proyectos estratégicos estructurados y/o implementados en el 1er cuatrimestre 2024 "," "," ",0.25,"Informe de proyectos estratégicos estructurados y/o implementados en el  2do cuatrimestre 2024"," "," ",0.35,"Informe de proyectos estratégicos estructurados y/o implementados  en el  3er cuatrimestre 2024"," "," ",0.4,1,"Funcionamiento","N/A","N/A","N/A","N/A","2-Seguridad Humana y Justicia Social","•    Objetivo 10: Reducción de las desigualdades","4042 Política nacional antilavado de activos, contra la financiación del terrorismo y contra la financiación de la proliferación de armas de destrucción masiva.","N/A"]
[null,25,"Gestión misional"," GM3. Dinamizar la banca de desarrollo y la inclusión financiera, como instrumento que incentive y estimule la competitividad, inversión, la economía popular y desarrollo social","SH.Ini.2023.2026.GM3.06Contribuir a la creación de valor compartido a través de la gestión integral de activos y el fomento a la productividad  de economías populares. ","Estructurar proyectos que generen valor compartido, social, productivo y/o ambiental. (CISA)","Estructurar proyectos que generen valor compartido, social, productivo y/o ambiental. (CISA). Estructurar proyectos inmobiliarios que permitan la utilización de activos y generen valor compartido.","Estratégico","2024-01-02","2024-12-31","Melissa Lorena Alfonso García","Melissa Lorena Alfonso García","Melissa Lorena Alfonso García","CISA"," ","Otras","x","x"," "," ","Evaluación técnica, financiera y jurídica del proyecto"," "," ",0.25,"Estructuración técnica y financiera del proyecto"," "," ",0.35,"Informe final de ejecución"," "," ",0.4,1,"Recursos propios","N/A","N/A","N/A","N/A","5-Convergencia Regional","•    Objetivo 11: Ciudades y comunidades sostenibles"," ","N/A"]
[null,26,"Gestión misional"," GM3. Dinamizar la banca de desarrollo y la inclusión financiera, como instrumento que incentive y estimule la competitividad, inversión, la economía popular y desarrollo social","SH.Ini.2023.2026.GM3.06Contribuir a la creación de valor compartido a través de la gestión integral de activos y el fomento a la productividad  de economías populares. ","Gestionar estrategias que permitan aumentar el recaudo de los municipios 4, 5 y 6 con el fin de disminuir las brechas municipales en la generación de recursos propios","Gestionar estrategias que permitan aumentar el recaudo de los municipios 4, 5 y 6 con el fin de disminuir las brechas municipales en la generación de recursos propios. Implementar estrategias de gestión de cartera predial en municipios de categoría 4,5 y 6 que permitan aumentar los recursos de libre destinación de los municipios para inversión, fortaleciendo las finanzas públicas y promoviendo el cierre de brechas regionales","Estratégico","2024-01-02","2024-12-31","Melissa Lorena Alfonso García","Melissa Lorena Alfonso García","Melissa Lorena Alfonso García","CISA"," ","Artículos  Plan Nacional de Desarrollo ","x","x","x"," ","Evaluación técnica, financiera y jurídica del proyecto"," "," ",0.25,"Estructuración técnica y financiera del proyecto"," "," ",0.35,"Informe final de ejecución"," "," ",0.4,1,"Recursos propios","N/A","N/A","N/A","N/A","5-Convergencia Regional","•    Objetivo 16: Paz, justicia e instituciones solidad"," ","N/A"]
[null,27,"Gestión misional"," GM3. Dinamizar la banca de desarrollo y la inclusión financiera, como instrumento que incentive y estimule la competitividad, inversión, la economía popular y desarrollo social","Contribuir al cumplimiento de las responsabilidades asumidas por el ICETEX en el Plan Nacional de Desarrollo 2022-2026 y reformar el modelo de créditos educativos en el país.  ","Proyectar el impacto fiscal de la implementación del artículo 127 del Plan Nacional de Desarrollo y coordinar con el Ministerio de Hacienda y Crédito Público para su respectiva financiación.","Realizar el análisis técnico y financiero para estimar el impacto fiscal anual de la implementación de un mecanismo de compensación de tasas de interés en casos específicos de alta inflación. Asistir a mesas técnicas interinstitucionales para determinar la financiación de los mecanismos de compensación de tasa.","Estratégico","2024-01-01","2024-12-31","Beatriz Torres","Mateo Herron Fajardo \nmherron.cont@icetex.gov.co ","Cindy Orjuela","Instituto Colombiano de Crédito Educativo y Estudios Técnicos en el Exterior Mariano Ospina Pérez (ICETEX)","Ministerio de Hacienda y Crédito Público - Dirección del Tesoro Nacional\n","Otras","x",null,null,null,"Diseñar la metodología de trabajo conjunto, la hoja de ruta y el cronograma de actividades.","Generar y compilar insumos técnicos y financieros para el análisis de impacto fiscal.","Realizar las mesas técnicas y elaborar las respectivas actas.",0.25,"Reglamentar e implementar internamente de la medida de compensación del IPC.","Informe de seguimiento de la implementación de la medida.","Informe de seguimiento de la implementación de la medida.",0.35,"Informe de seguimiento de la implementación de la medida.","Informe de seguimiento de la implementación de la medida.","Informe de evaluación y seguimiento de la implementación de la medida y su respectivo balance anual.",0.4,1,"N/A","N/A","N/A","N/A","N/A","Eje transversal- Los actores diferenciales para el cambio","•    Objetivo 4: Educación de calidad","4099 Política nacional de promoción del acceso a financiamiento de las entidades subnacionales orientado a inversiones sostenibles","N/A"]
[null,28,"Gestión misional"," GM3. Dinamizar la banca de desarrollo y la inclusión financiera, como instrumento que incentive y estimule la competitividad, inversión, la economía popular y desarrollo social","Contribuir al cumplimiento de las responsabilidades asumidas por el ICETEX en el Plan Nacional de Desarrollo 2022-2026 y reformar el modelo de créditos educativos en el país.  ","Coordinar con el Ministerio de Hacienda y Crédito Público y la Dirección del Tesoro Nacional el respectivo trámite y transferencia de los recursos.","Realizar el análisis técnico y financiero de los recursos disponibles en los saldos de las cuentas corrientes o de ahorro que hayan permanecido inactivas por un período mayor a un (1) año y no superen el valor equivalente a 322 UVR, para que sean transferidas al ICETEX.","Estratégico","2024-01-01","2024-12-31","Beatriz Torres","Mateo Herron Fajardo \nmherron.cont@icetex.gov.co ","Cindy Orjuela","Instituto Colombiano de Crédito Educativo y Estudios Técnicos en el Exterior Mariano Ospina Pérez (ICETEX)","Ministerio de Hacienda y Crédito Público - Dirección del Tesoro Nacional\n","Otras","x",null,null,null,"Realizar la estimación de los recursos disponibles en los saldos de las cuentas corrientes o de ahorro que hayan permanecido inactivas por un período mayor a un (1) año y no superen el valor equivalente a 322 UVR, para que sean transferidas al ICETEX.","Realizar la transferencia de los recursos de las cuentas inactivas al ICETEX.","Informe de seguimiento sobre la destinación de los recursos de las cuentas inactivas. ",0.25,"N/A",null,"Informe de seguimiento sobre la destinación de los recursos de las cuentas inactivas. ",0.35,null,null,"Informe de evaluación y seguimiento sobre la destinación de los recursos de las cuentas inactivas. ",0.4,1,"N/A","N/A","N/A","N/A","N/A","Eje transversal- Los actores diferenciales para el cambio","•    Objetivo 4: Educación de calidad",null,"N/A"]
[null,29,"Gestión misional"," GM3. Dinamizar la banca de desarrollo y la inclusión financiera, como instrumento que incentive y estimule la competitividad, inversión, la economía popular y desarrollo social","Contribuir al cumplimiento de las responsabilidades asumidas por el ICETEX en el Plan Nacional de Desarrollo 2022-2026 y reformar el modelo de créditos educativos en el país.  ","Continuar con la reglamentación e implementación del Plan de Salvamento mediante Acuerdo de la Junta Directiva del ICETEX y coordinar con el Ministerio de Hacienda y Crédito Público el impacto fiscal del Plan de Salvamento y su respectiva financiación.","Realizar el análisis técnico y financiero para estimar el impacto fiscal anual de la implementación del Plan de Salvamento y todas las medidas incluidas en el. Asistir a mesas técnicas interinstitucionales para determinar la financiación de las medidas propuestas. ","Estratégico","2024-01-01","2026-12-31","Beatriz Torres","Mateo Herron Fajardo \nmherron.cont@icetex.gov.co ","Cindy Orjuela","Instituto Colombiano de Crédito Educativo y Estudios Técnicos en el Exterior Mariano Ospina Pérez (ICETEX)","Ministerio de Hacienda y Crédito Público - Dirección del Tesoro Nacional\n","Otras","x",null,null,null,"Realizar la estimación del impacto y costo fiscal de la implementación del Plan de Salvamento en su totalidad. ","Generar y compilar insumos técnicos y financieros para el análisis de impacto fiscal del Plan de Salvamento.","Diseñar la metodología de trabajo conjunto, la hoja de ruta y el cronograma de actividades.",0.25,"Realizar las mesas técnicas y elaborar las respectivas actas.","Realizar la transferencia de los recursos que se determinen para la financiación del Plan de Salvamento. ","Informe de seguimiento sobre los recursos destinados al Plan de Salvamento y su impacto en los deudores del ICETEX. ",0.35,null,null,"Informe de  evaluación y seguimiento sobre los recursos destinados al Plan de Salvamento y su impacto en los deudores del ICETEX. ",0.4,1,"N/A","N/A","N/A","N/A","N/A","Eje transversal- Los actores diferenciales para el cambio","•    Objetivo 4: Educación de calidad",null,"N/A"]
[null,30,"Gestión misional"," GM3. Dinamizar la banca de desarrollo y la inclusión financiera, como instrumento que incentive y estimule la competitividad, inversión, la economía popular y desarrollo social","Contribuir al cumplimiento de las responsabilidades asumidas por el ICETEX en el Plan Nacional de Desarrollo 2022-2026 y reformar el modelo de créditos educativos en el país.  ","Proyectar el impacto fiscal anual de la implementación del artículo 132 del Plan Nacional de Desarrollo y coordinar con el Ministerio de Hacienda y Crédito Público para su respectiva financiación.","Realizar el análisis técnico y financiero para estimar el impacto fiscal anual de la implementación del modelo de crédito educativo de Pago Contingente al Ingreso. Asistir a mesas técnicas interinstitucionales para determinar la financiación de los nuevos créditos otorgados bajo esta modalidad. ","Estratégico","2024-01-01","2026-12-31","Beatriz Torres","Mateo Herron Fajardo \nmherron.cont@icetex.gov.co ","Cindy Orjuela","Instituto Colombiano de Crédito Educativo y Estudios Técnicos en el Exterior Mariano Ospina Pérez (ICETEX)","Ministerio de Hacienda y Crédito Público - Dirección del Tesoro Nacional\n","Perfeccionamiento Planeación Estratégica ","x",null,null,null,"Realizar la estimación del impacto y costo fiscal de la colocación de nuevos créditos bajo la modalidad de Pago Contingente al Ingreso.","Generar y compilar insumos técnicos y financieros para el análisis de la ampliación de la colocación de créditos en la modalidad de Pago Contingente al Ingreso.","Diseñar la metodología de trabajo conjunto, la hoja de ruta y el cronograma de actividades.",0.25,"Realizar las mesas técnicas y elaborar las respectivas actas.","Determinar la proyección y colocación de nuevos créditos PCI dependiendo de la financiación establecida.","Abrir nueva convocatoria para créditos educativos en la modalidad de Pago Contingente al Ingreso.",0.35,null,null,"Informe de evaluación y seguimiento sobre la colocación de nuevos créditos educativos en la modalidad de Pago Contingente al Ingreso.",0.4,1,"N/A","N/A","N/A","N/A","N/A","Eje transversal- Los actores diferenciales para el cambio","•    Objetivo 4: Educación de calidad",null,"N/A"]
[null,31,"Gestión misional"," GM3. Dinamizar la banca de desarrollo y la inclusión financiera, como instrumento que incentive y estimule la competitividad, inversión, la economía popular y desarrollo social","Contribuir al cumplimiento de las responsabilidades asumidas por el ICETEX en el Plan Nacional de Desarrollo 2022-2026 y reformar el modelo de créditos educativos en el país.  ","Radicar ante el Congreso de la República del Proyecto de Ley de Reforma al ICETEX y respectivo trámite legislativo, hasta la firma presidencial. Coordinar con el Ministerio de Hacienda y Crédito Público mesas técnicas para culminar la formulación de la iniciativa, revisar su viabilidad presupuestal y generar un concepto técnico para el trámite legislativo. Posterior a ello coordinar la financiación de las medidas de la Reforma.  ","Coordinar mesas técnicas con el Ministerio de Hacienda y Crédito Público para completar la formulación de la iniciativa y revisar generar estimaciones sobre el potencial impacto fiscal de la iniciativa. Generar un concepto técnico por parte del Ministerio de Hacienda y Crédito Público y sus respectivas áreas encargadas del trámite legislativo.","Estratégico","2024-01-01","2024-12-31","Beatriz Torres","Mateo Herron Fajardo \nmherron.cont@icetex.gov.co ","Cindy Orjuela","Instituto Colombiano de Crédito Educativo y Estudios Técnicos en el Exterior Mariano Ospina Pérez (ICETEX)","Ministerio de Hacienda y Crédito Público - Dirección del Tesoro Nacional\n","Otras","x",null,null,null,"Diseñar la metodología de trabajo conjunto, la hoja de ruta y el cronograma de actividades.","Realizar las mesas técnicas y elaborar las respectivas actas.","Realizar la estimación del impacto y costo fiscal de la implementación de todas las medidas contempladas en el Proyecto de Ley de Reforma al ICETEX.",0.25,"Desarrollar el concepto técnico sobre el Proyecto de Ley para su radicación ante el Congreso de la República.","Informe sobre el trámite legislativo del Proyecto de Ley y sobre los comentarios de las audiencias públicas.","Elaborar la ponencia número 1 para el primer debate en comisiones en el Congreso de la República.",0.35,"Elaborar la ponencia número 2 para el segundo debate en plenarias en el Congreso de la República.",null,"Elaborar la ponencia número 3 para el tercer debate en comisiones en el Congreso de la República.",0.4,1,"N/A","N/A","N/A","N/A","N/A","Eje transversal- Los actores diferenciales para el cambio","•    Objetivo 4: Educación de calidad",null,"N/A"]

{"sheet":"Plan_transversal","index":6,"n_rows":40,"n_cols":44,"rows_kept":40,"cut":false,"hidden":false,"merged":[[0,1,2,5],[5,39,6,40],[6,21,6,24],[6,25,6,28],[6,29,6,31],[6,32,7,32],[5,34,6,38],[5,1,6,4],[5,5,6,16],[5,17,6,20],[5,21,5,33]]}
[]
[]
[]
[null,null,null,"Versión 1 aprobada mediante Comité Sectorial 13 de diciembre de 2023"]
[]
[null,"Mapa Estratégico Institucional 2023-2026",null,null,null,"Información de la tarea 2024",null,null,null,null,null,null,null,null,null,null,null,"Recursos necesarios para el desarrollo de la tarea",null,null,null,"Entregables 2024",null,null,null,null,null,null,null,null,null,null,null,null,"Gestión Presupuestal del Plan ",null,null,null,null,"Otros planes\n"]
[null,null,null,null,null,null,null,null,null,null,null,null,null,null,null,null,null,null,null,null,null,"1er cuatrimestre 2024\nCorte 30/04/2024",null,null,null,"2do cuatrimestre 2024\nCorte 30/09/2024",null,null,null,"3er cuatrimestre 2024\nCorte 31/12/2024",null,null,"Meta 3er cuatrimestre ","Total vigencia"]
[null,"No. ","Perspectiva","Objetivo estratégico","Iniciativa ","Nombre de la Tarea\n2024","Descripción de la Tarea 2024","Nivel de la tarea","Fecha inicial ","Fecha final","Aprobador","Documentador","Recurso SMGI","Entidad Responsable","Entidad participante o de apoyo","Dependencia o entidad participante","Fuente de información de la tarea","Talento Humano","Financiero","Tecnológico","Físico","Entregable 1","Entregable 2","Entregable 3","Meta 1er cuatrimestre","Entregable 1","Entregable 2","Entregable 3","Meta 2do cuatrimestre ","Entregable 1","Entregable 2","Entregable 3",null,1,"Fuentes de Financiación ","Nombre del proyecto","Producto proyecto inversión","Apropiación Vigente","Ejecución Presupuestal (obligaciones)","Otro plan, estrategia, modelo, sistema.\n","Nivel de la tarea"]
[null,1,"Gestión para el resultado","GR1. Fortalecer los mecanismos para una cultura de transparencia y participación ciudadana en las entidades del Sector Hacienda","SH.Ini.2023.2026.GR1.01 Diseñar e implementar estrategias para la divulgación de información y relacionamiento con el ciudadano","Diseñar contenido y coordinar el desarrollo de  la mesa sectorial  de relacionamiento con el ciudadano.\n\nMesa sectorial 1","Adelantar  contenido de la mesa sectorial, así como la citación y desarrollo de la misma con las entidades del Sector Hacienda.","Estratégico","2024-03-01","2024-12-16","Edgar Neftalí Torres Prieto","Carlos Andrés Gil Santamaría","Carlos Alfonso Carrillo","Ministerio de Hacienda y Crédito Público","N/A",null,"Cierre de brechas FURAG","X",null,null,null,"Evidencias reuniones realizadas",null,null,0.25,"Evidencias reuniones realizadas",null,null,0.35,"Evidencias reuniones realizadas",null,null,0.4,1,"N/A","N/A","N/A","N/A","N/A","N/A","N/A"]
[null,2,"Gestión para el resultado","GR1. Fortalecer los mecanismos para una cultura de transparencia y participación ciudadana en las entidades del Sector Hacienda","SH.Ini.2023.2026.GR1.01 Diseñar e implementar estrategias para la divulgación de información y relacionamiento con el ciudadano","Participar en las actividades que se definan en las mesas sectoriales de relacionamiento ciudadano\n\nMesa sectorial 1","Participar en las actividades que se definan en las mesas sectoriales de Relacionamiento Ciudadano","Estratégico","2024-03-01","2024-12-16","Delegado entidad","Delegado entidad","Delegado entidad","Ministerio de Hacienda y Crédito Público","Todas las entidades SH",null,"Otras","X",null,null,null,"Evidencias reuniones realizadas",null,null,0.25,"Evidencias reuniones realizadas",null,null,0.35,"Evidencias reuniones realizadas",null,null,0.4,1,"N/A","N/A","N/A","N/A","N/A","N/A","N/A"]
[null,3,"Gestión para el resultado"," GR2. Fortalecer la gestión del conocimiento y la innovación en las entidades del Sector Hacienda","SH.Ini.2023.2026.GR1.02 Coadyuvar en el mejoramiento del ejercicio de la función disciplinaria, mediante la implementación de buenas prácticas, herramientas y contenido de transferencia de conocimiento","Programar las sesiones del Colectivo Disciplinario del Sector Hacienda - Enero a diciembre (5 sesiones obligatorias con participación de todas las entidades)\n\nMesa sectorial 2","La Secretaría Técnica del Colectivo Sectorial coordinará la realización de las sesiones correspondientes a capacitación y actualización del reglamento interno de colectivo sectorial; actualización del reglamento interno sujeto a la expedición del acto administrativo que apruebe la creación del Colectivo Disciplinario del Sector Hacienda como parte del Comité Sectorial de Gestion y desempeño del Sector Hacienda y Crédito Publico.","Táctico","2024-01-01","2024-12-31","Claudia Paz","Leidy Vanegas","Iván Silva","Ministerio de Hacienda y Crédito Público","Todas las entidades SH",null,"Otras","X",null,null,null,"Evidencias reuniones realizadas",null,null,0.25,"Evidencias reuniones realizadas",null,null,0.35,"Evidencias reuniones realizadas",null,null,0.4,1,"N/A","N/A","N/A","N/A","N/A","N/A","N/A"]
[null,4,"Gestión para el resultado"," GR2. Fortalecer la gestión del conocimiento y la innovación en las entidades del Sector Hacienda","SH.Ini.2023.2026.GR1.02 Coadyuvar en el mejoramiento del ejercicio de la función disciplinaria, mediante la implementación de buenas prácticas, herramientas y contenido de transferencia de conocimiento","Participar de las sesiones del colectivo disciplinario y de las actividades que se deriven de las mesas de trabajo.\n\nMesa sectorial 2","Coadyuvar en la realización de las sesiones del colectivo encaminadas a llevar a cabo las capacitaciones en derecho disciplinario y en la actualización del reglamento interno del Colectivo Sectorial.","Táctico","2024-01-01","2024-12-31","Delegado cada entidad","Delegado cada entidad","Delegado cada entidad","Ministerio de Hacienda y Crédito Público","Todas las entidades SH",null,"Otras","X",null,null,null,"Evidencias reuniones realizadas",null,null,0.25,"Evidencias reuniones realizadas",null,null,0.35,"Evidencias reuniones realizadas",null,null,0.4,1,"N/A","N/A","N/A","N/A","N/A","N/A","N/A"]
[null,5,"Gestión para el resultado"," GR2. Fortalecer la gestión del conocimiento y la innovación en las entidades del Sector Hacienda","SH.Ini.2023.2026.GR2.01 Desarrollar espacios encaminados al fortalecimiento sectorial de la Política de Gestión del Conocimiento y la Innovación, de acuerdo con los lineamientos del Modelo Integrado de Planeación y Gestión - MIPG.","Promover la creación de acciones estratégicas para el Sector Hacienda a través de actividades de innovación.\n\nMesa sectorial 3","Realizar actividades basadas en innovación para el Sector Hacienda, que permitan apoyar la estructuración de los objetivos generales y específicos que tendrá durante la próxima vigencia. \n\n ","Estratégico","2024-02-01","2024-12-20","Maria del Pilar Florido","Camilo Sánchez","Derly Catherine Cifuentes","Ministerio de Hacienda y Crédito Público","Todas las entidades SH","Perfeccionamiento Planeación Estratégica ","Otras","x",null,null,null,"Diseño de la estrategia",null,null,0.25,"Informe implementación estrategia",null,null,0.35,"Informe final ejecución de la estrategia",null,null,0.4,1,"Inversión","Fortalecimiento de la gestión institucional con procesos de conocimiento, innovación y open government  nacional","1399063-02: Servicios de información implementados\n1399055-02: Documentos metodológicos\n1399058-02: Servicios de educación informal para la gestión administrativa",359820000,"N/A","N/A","N/A"]
[null,6,"Gestión para el resultado"," GR2. Fortalecer la gestión del conocimiento y la innovación en las entidades del Sector Hacienda","SH.Ini.2023.2026.GR2.01 Desarrollar espacios encaminados al fortalecimiento sectorial de la Política de Gestión del Conocimiento y la Innovación, de acuerdo con los lineamientos del Modelo Integrado de Planeación y Gestión - MIPG.","Diseñar la estrategia de semilleros de investigación\n\nMesa sectorial 3","Crear  desde el Ministerio de Hacienda semilleros de investigación, donde participen las entidades del sector","Táctico","2024-02-01","2024-12-20","Maria del Pilar Florido","Camilo Sánchez",null,"Ministerio de Hacienda y Crédito Público","Todas las entidades SH","Cierre de brechas FURAG","Cierre de brechas FURAG",null,"x",null,null,null,null,0.25,"Realización de la primera fase del semillero de investigación",null,null,0.35,"Documentación del resultado del semillero de investigación  vigencia 2024",null,null,0.4,{"$f":"X14+AB14+AF14","v":1},null,null,null,null,"N/A","N/A","N/A","N/A"]
[null,7,"Gestión para el resultado"," GR2. Fortalecer la gestión del conocimiento y la innovación en las entidades del Sector Hacienda","SH.Ini.2023.2026.GR2.01 Desarrollar espacios encaminados al fortalecimiento sectorial de la Política de Gestión del Conocimiento y la Innovación, de acuerdo con los lineamientos del Modelo Integrado de Planeación y Gestión - MIPG.","Crear las comunidades de práctica a nivel sectorial\n\nMesa sectorial 3","Desarrollar mesas de trabajo sectoriales para compartir y difundir información de interés común, buenas practicas y lecciones aprendidas.","Táctico","2024-01-02","2024-11-30","Maria del Pilar Florido","Camilo Sánchez",null,"Ministerio de Hacienda y Crédito Público","Todas las entidades SH","Cierre de brechas FURAG","Cierre de brechas FURAG","X",null,null,null,null,null,0.25,null,null,null,0.35,null,null,null,0.4,1,null,null,null,null,"N/A","N/A","N/A","N/A"]
[null,8,"Gestión para el resultado"," GR2. Fortalecer la gestión del conocimiento y la innovación en las entidades del Sector Hacienda","SH.Ini.2023.2026.GR2.01 Desarrollar espacios encaminados al fortalecimiento sectorial de la Política de Gestión del Conocimiento y la Innovación, de acuerdo con los lineamientos del Modelo Integrado de Planeación y Gestión - MIPG.","Participar en la comunidad de practica sectorial de Gestión del Conocimiento e innovación \n\nMesa sectorial 3","Participar en las actividades definidas en la política de gestión de conocimiento e innovación","Táctico","2024-02-01","2024-12-20","Delegado entidad","Delegado entidad","Delegado entidad","Cada Entidad","Todas las entidades SH","Cierre de brechas FURAG","Otras","X",null,null,null,"Actas de asistencia\nPresentaciones\n",null,0.25,"Actas de asistencia\nPresentaciones\n",null,null,0.35,"Actas de asistencia\nPresentaciones\n",null,null,0.4,{"$f":"X16+AB16+AF16","v":1},null,null,null,null,"N/A","N/A","N/A","N/A"]
[null,9,"Gestión para el resultado","GR3. Promover la transformación digital en las entidades del Sector para contribuir a la modernización de los procesos de entrega de productos y servicios de cada entidad","SH.Ini.2023.2026.GR3.01 Realizar el seguimiento a la apropiación de tecnologías emergentes por parte de las entidades del sector ","Realizar mesas de trabajo sectoriales para compartir conocimiento (buenas prácticas, lecciones aprendidas, etc.)  frente a la formulación y ejecución de proyectos de transformación digital \n\nMesa sectorial 4","Planear y coordinar con las instancias competentes la realización de mesas de trabajo en los temas que apalancan la formulación y ejecución de proyectos de transformación digital ","Táctico","2024-02-01","2026-12-20","Ricardo Rios","Maria Antonia Amaris Castillo","Ministerio de Hacienda y Crédito Público","N/A","Todas las entidades SH","x","Otras","X",null,null,null,"Identificación de temas de interés para las entidades del Sector","Planear y coordinar con las instancias competentes la realización de mesas de trabajo en los temas que apalancan la formulación y ejecución de proyectos de transformación digital ","Realizar mesas de trabajo en los temas que apalancan la formulación y ejecución de proyectos de transformación digital ",null,null,0.6,0.35,null,null,0,0.4,{"$f":"#REF!+AB17+AF17","v":{"$error":"#REF!"}},"Fortalecimiento del gobierno y la gestión de servicios tic en el MHCP ","Documentos de lineamientos técnicos",{"$f":"+(97427700*0.25)","v":24356925},null,"Eje transversal- estabilidad macroeconomía","•    Objetivo 9: Industria, innovación e infraestructura"]
[null,10,"Gestión para el resultado","GR3. Promover la transformación digital en las entidades del Sector para contribuir a la modernización de los procesos de entrega de productos y servicios de cada entidad","SH.Ini.2023.2026.GR3.01 Realizar el seguimiento a la apropiación de tecnologías emergentes por parte de las entidades del sector ","\nEjercer rol como cabeza de sector para la elaboración de la Fase 1 de la hoja de Ruta sectorial en el marco del Comité Nacional de Datos.\n\nMesa sectorial 4","Gestionar la participación de las Entidades del sector Hacienda para la elaboración de la estrategia Sectorial de Datos","Táctico","2024-02-01","2024-12-20","Ricardo Rios","Jose Alberto Ahumada","N/A","Ministerio de Hacienda y Crédito Público","Presidencia\nDepartamento Nacional de Planeación\n(Comité Nacional de Datos)","Bases Plan Nacional de Desarrollo ","Plan Nacional de Desarrollo 2022-2026","X",null,null,null,"Gestionar la participación de las Entidades del sector Hacienda para la elaboración de la estrategia Sectorial de Datos",null,0.25,"Gestionar la participación de las Entidades del sector Hacienda para la elaboración de la estrategia Sectorial de Datos",null,null,0.35,"Gestionar la participación de las Entidades del sector Hacienda para la elaboración de la estrategia Sectorial de Datos",null,null,0.4,{"$f":"X18+AB18+AF18","v":1},"Funcionamiento",null,"N/A","N/A","N/A",null,"•    Objetivo 4:Acceso, uso y aprovechamiento de datos para impulsar la transformación social"]
[null,11,"Gestión para el resultado","GR3. Promover la transformación digital en las entidades del Sector para contribuir a la modernización de los procesos de entrega de productos y servicios de cada entidad","SH.Ini.2023.2026.GR3.01 Realizar el seguimiento a la apropiación de tecnologías emergentes por parte de las entidades del sector ","Realizar mesas de trabajo sectoriales para compartir conocimiento (buenas prácticas, lecciones aprendidas, etc.)  frente a la formulación y ejecución de proyectos de transformación digital \n\nMesa sectorial 4","Planear y coordinar con las instancias competentes la realización de mesas de trabajo en los temas que apalancan la formulación y ejecución de proyectos de transformación digital ","Táctico","2024-02-01","2026-12-20","Ricardo Rios","Maria Antonia Amaris Castillo","Ministerio de Hacienda y Crédito Público","N/A","Todas las entidades SH","x","Otras","X",null,null,null,"Identificación de temas de interés para las entidades del Sector","Planear y coordinar con las instancias competentes la realización de mesas de trabajo en los temas que apalancan la formulación y ejecución de proyectos de transformación digital ","Realizar mesas de trabajo en los temas que apalancan la formulación y ejecución de proyectos de transformación digital ",null,null,0.6,0.35,null,null,0,0.4,{"$f":"#REF!+AB19+AF19","v":{"$error":"#REF!"}},"Fortalecimiento del gobierno y la gestión de servicios tic en el MHCP ","Documentos de lineamientos técnicos",{"$f":"+(97427700*0.25)","v":24356925},null,"Eje transversal- estabilidad macroeconomía","•    Objetivo 9: Industria, innovación e infraestructura"]
[null,12,"Gestión para el resultado","GR3. Promover la transformación digital en las entidades del Sector para contribuir a la modernización de los procesos de entrega de productos y servicios de cada entidad","SH.Ini.2023.2026.GR3.02 Definir y ejecutar estrategias para apoyar la adopción de las políticas de gobierno y seguridad digital en las entidades del sector","Implementar la estrategia #1 para adopción de las políticas de gobierno digital y seguridad digital \n\nMesa sectorial 4","Identificar, planear  y ejecutar  acciones que apoyen la adopción de las políticas de gobierno digital y seguridad digital  por parte de las entidades del sector","Táctico","2024-02-01","2026-12-20","Ricardo Rios","Maria Antonia Amaris Castillo","Ministerio de Hacienda y Crédito Público","N/A","Todas las entidades SH","x",null,"X",null,null,null,"Identificación de temas de interés para las entidades del Sector ","planear   acciones que apoyen la adopción de las políticas de gobierno digital y seguridad digital  por parte de las entidades del sector",0.25,null,null,"Ejecutar  acciones que apoyen la adopción de las políticas de gobierno digital y seguridad digital  por parte de las entidades del sector",0.35,null,null,0.5,0.4,{"$f":"X20+AB20+AF20","v":1},"Fortalecimiento del gobierno y la gestión de servicios tic en el MHCP ","Documentos de lineamientos técnicos",{"$f":"+(97427700*0.25)","v":24356925},null,"Eje transversal- estabilidad macroeconomía","•    Objetivo 9: Industria, innovación e infraestructura"]
[null,13,"Gestión para el resultado","GR3. Promover la transformación digital en las entidades del Sector para contribuir a la modernización de los procesos de entrega de productos y servicios de cada entidad","SH.Ini.2023.2026.GR3.02 Definir y ejecutar estrategias para apoyar la adopción de las políticas de gobierno y seguridad digital en las entidades del sector","Implementar estrategia #2 para adopción de las políticas de gobierno digital  y seguridad digital  \n\nMesa sectorial 4","Identificar, planear  y ejecutar  acciones que apoyen la adopción de las políticas de gobierno digital y seguridad digital  por parte de las entidades del sector","Táctico","2024-02-01","2026-12-20","Ricardo Rios","Maria Antonia Amaris Castillo","Ministerio de Hacienda y Crédito Público","N/A","Todas las entidades SH","x",null,"X",null,null,null,"Identificación de temas de interés para las entidades del Sector ","planear   acciones que apoyen la adopción de las políticas de gobierno digital y seguridad digital  por parte de las entidades del sector",null,null,null,"Ejecutar  acciones que apoyen la adopción de las políticas de gobierno digital y seguridad digital  por parte de las entidades del sector",0.35,null,null,0.5,0.4,{"$f":"X21+AB21+AF21","v":0.75},"Fortalecimiento del gobierno y la gestión de servicios tic en el MHCP ","Documentos de lineamientos técnicos",24356925,null,"Eje transversal- estabilidad macroeconomía","•    Objetivo 9: Industria, innovación e infraestructura"]
[null,14,"Gestión para el resultado","GR3. Promover la transformación digital en las entidades del Sector para contribuir a la modernización de los procesos de entrega de productos y servicios de cada entidad","SH.Ini.2023.2026.GR3.01 Realizar el seguimiento a la apropiación de tecnologías emergentes por parte de las entidades del sector ","Participar en las actividades que convoque el líder temático de Gobierno Digital y Seguridad Digital\n\nMesa sectorial 4","Asistir a las sesiones programadas y convocadas por la Dirección de Tecnología del MHCP","Táctico","2024-02-01","2026-12-20","Delegado entidad","Delegado entidad","Delegado entidad","N/A","Todas las entidades SH","x",null,"X",null,null,null,"Asistir a las sesiones programadas y convocadas por la Dirección de Tecnología del MHCP","Asistir a las sesiones programadas y convocadas por la Dirección de Tecnología del MHCP",0.25,null,null,"Asistir a las sesiones programadas y convocadas por la Dirección de Tecnología del MHCP",0.35,null,null,0.35,0.4,{"$f":"X22+AB22+AF22","v":1},"Fortalecimiento del gobierno y la gestión de servicios tic en el MHCP ","Documentos de lineamientos técnicos",24356925,null,"Eje transversal- estabilidad macroeconomía","•    Objetivo 9: Industria, innovación e infraestructura"]
[null,15,"Gestión de capacidades institucionales"," GC1. Fortalecer las capacidades del talento humano y promover la cultura de integridad del Sector Hacienda","SH.Ini.2023.2026.GC1.01 Desarrollar espacios encaminados al fortalecimiento sectorial de la Política de Gestión Estratégica de Talento Humano y Política de Integridad, de acuerdo con lo lineamientos del Modelo Integrado de Planeación y Gestión - MIPG.","Coordinar las mesas sectoriales, capacitaciones y socialización del análisis de los resultados de la medición Furag de Talento Humano\n\nMesa sectorial 5","Programar para cada vigencia dos mesas sectoriales con el fin de compartir información sobre diversos asuntos relacionados con la dimensión de talento humano del MIPG (políticas de talento humano e integridad) de conformidad con los lineamientos del Dafp. A su vez programará capacitaciones del interés del sector y socializará los resultados y recomendaciones de la medición Furag emitidas por el Dafp.","Táctico","2024-02-01","2024-12-20","Fernando Carvajal","Hilda Verónica Tapasco","Lia Carolina Cabrejo Cárdenas","Ministerio de Hacienda y Crédito Público","Todas las entidades SH","N/A","x",null,"x",null,null,"Organización de actividades de los siguientes cuatrimestres",null,0.25,"Registros de asistencia y/o presentaciones",null,null,0.35,"Registros de asistencia y/o presentaciones",null,null,0.4,{"$f":"X23+AB23+AF23","v":1},"Funcionamiento",null,null,null,null,"2-Seguridad Humana y Justicia Social","•    Objetivo 8: Trabajo decente y crecimiento económico"]
[null,16,"Gestión de capacidades institucionales"," GC1. Fortalecer las capacidades del talento humano y promover la cultura de integridad del Sector Hacienda","SH.Ini.2023.2026.GC1.01 Desarrollar espacios encaminados al fortalecimiento sectorial de la Política de Gestión Estratégica de Talento Humano y Política de Integridad, de acuerdo con lo lineamientos del Modelo Integrado de Planeación y Gestión - MIPG.","Participar en las mesas sectoriales, capacitaciones gestionadas por el Ministerio de Hacienda en el marco de la dimensión del Talento Humano\n\nMesa sectorial 5","Asistencia por parte de las entidades del Sector Hacienda, en las mesas y capacitaciones sectoriales que programe el Ministerio de Hacienda y Crédito Público relacionadas con la Dimensión de Talento Humano.","Táctico","2024-02-01","2024-12-20","Cada Entidad","Cada Entidad","Cada Entidad","Todas las entidades","Todas las entidades SH","N/A","x",null,"x",null,null,"Registros de asistencia y/o presentaciones",null,0.25,"Registros de asistencia y/o presentaciones",null,null,0.35,"Registros de asistencia y/o presentaciones",null,null,0.4,{"$f":"X24+AB24+AF24","v":1},"Funcionamiento",null,null,null,null,"2-Seguridad Humana y Justicia Social","•    Objetivo 8: Trabajo decente y crecimiento económico"]
[null,17,"Gestión de capacidades institucionales","GC2.  Fortalecer la gestión pública a través de procesos administrativos, financieros y jurídicos del Sector Hacienda","SH.Ini.2023.2026.GC2.01 Desarrollar mecanismos para un adecuado ejercicio de defensa jurídica de las Entidades del Sector Hacienda","Construir el reporte de índice de condenas en los estudios y/o análisis que realiza la entidad de los procesos que cursan o hayan cursado en su contra, con el fin de proponer las mejoras o correctivos que se requieran\n\nMesa sectorial 6","Realizar el análisis de casos perdidos y ganados y/o análisis de riesgos\nElaborar informe cualitativo y analítico a partir del cual se formulen conclusiones concretas con las respectivas propuestas de solución, mejora y/o prevención, según corresponda. \n\nEntregable: Aplicativo ANDJE para el análisis de casos ganados y perdidos y/o Reporte que contenga la información señalada\n\nPeriodicidad: una (1) vez al año\n\n","Táctico","2024-02-01","2024-12-20","Diego Ignacio Rivera Mantilla","Sandra Diaz Castellanos","N/A","Subdirección Jurídica MHCP","Todas las entidades SH",null,null,null,null,null,null,"Registro en el aplicativo ANDJE para el análisis de casos ganados y perdidos y/o reporte que contenga la información señalada.",null,0.25,"Registro en el aplicativo ANDJE para el análisis de casos ganados y perdidos y/o reporte que contenga la información señalada.",null,null,0.35,"Registro en el aplicativo ANDJE para el análisis de casos ganados y perdidos y/o reporte que contenga la información señalada.",null,null,0.4,{"$f":"X25+AB25+AF25","v":1},"Funcionamiento"]
[null,18,"Gestión de capacidades institucionales","GC2.  Fortalecer la gestión pública a través de procesos administrativos, financieros y jurídicos del Sector Hacienda","SH.Ini.2023.2026.GC2.01 Desarrollar mecanismos para un adecuado ejercicio de defensa jurídica de las Entidades del Sector Hacienda","Participar en las mesas sectoriales de la política de Defensa Jurídica del Sector Hacienda \n\nMesa sectorial 6","De acuerdo con la Resolución 1107 del 20 de abril de 2016 de creación del Subcomité, se programaran las dos sesiones en donde se tratan temas defensa judicial transversales a las entidades que hacen parte del Sector Hacienda.\nEntregable. Actas de Subcomité y listas de asistencia.\n\nPeriodicidad: Dos veces al año","Táctico","2024-02-01","2024-12-20","Cada Entidad","Cada Entidad","N/A","Cada Entidad","Todas las entidades SH","Otras","x",null,null,null,null,"Asistencias y/o presentaciones",null,0.25,"Asistencias y/o presentaciones",null,null,0.35,"Asistencias y/o presentaciones",null,null,0.4,{"$f":"X26+AB26+AF26","v":1},"Funcionamiento"]
[null,19,"Gestión para el resultado"," GR2. Fortalecer la gestión del conocimiento y la innovación en las entidades del Sector Hacienda","SH.Ini.2023.2026.GR2.02 Fortalecer la  Gestión Documental en las entidades del Sector Hacienda","Coordinar las mesas sectoriales de la Política de Gestión documental\n\nMesa sectorial 7","Diseñar contenido de la mesa\nCitar mesa sectorial\nDesarrollar mesa sectorial","Estratégico","2024-03-01","2024-12-16","Edgar Neftalí Torres Prieto","Carlos Andrés Gil Santamaría","Carlos Alfonso Carrillo","Ministerio de Hacienda y Crédito Público","Todas las entidades SH","Cierre de brechas FURAG","Cierre de brechas FURAG","X",null,null,null,"Evidencias reuniones realizadas",null,null,0.25,"Evidencias reuniones realizadas",null,null,0.35,"Evidencias reuniones realizadas",null,null,0.4,1,"N/A","N/A","N/A","N/A","N/A","N/A","N/A"]
[null,20,"Gestión para el resultado"," GR2. Fortalecer la gestión del conocimiento y la innovación en las entidades del Sector Hacienda","SH.Ini.2023.2026.GR2.02 Fortalecer la  Gestión Documental en las entidades del Sector Hacienda","Participar en las mesas y actividades sectoriales de Gestión Documental\n\nMesa sectorial 7","Participar en las actividades definidas en gestión documental","Estratégico","2024-03-01","2024-12-16","Delegado entidad","Delegado entidad","Delegado entidad","Todas las entidades SH","Todas las entidades SH",null,"Cierre de brechas FURAG","X",null,null,null,"Evidencias reuniones realizadas",null,null,0.25,"Evidencias reuniones realizadas",null,null,0.35,"Evidencias reuniones realizadas",null,null,0.4,1,"N/A","N/A","N/A","N/A","N/A","N/A","N/A"]
[null,21,"Gestión de capacidades institucionales","GC2.  Fortalecer la gestión pública a través de procesos administrativos, financieros y jurídicos del Sector Hacienda","SH.Ini.2023.2026.GC2.02 Fortalecer la generación de proyectos de responsabilidad social-ambiental y buenas prácticas para mejorar el desempeño ambiental en las Entidades del Sector Hacienda.","Coordinar las mesas sectoriales de gestión y desempeño ambiental \n\nMesa Sectorial 8","El Ministerio programará para cada vigencia seis  mesas sectoriales con el  fin de compartir información  y asesorar, desde la experiencia, sobre cumplimiento normativo relacionado con el tema de residuos peligrosos, proyectos de responsabilidad social-ambiental y experiencias exitosas en la implementación  buenas practicas ambientales  y mejora del desempeño ambiental. ","Táctico","2024-01-01","2024-12-31","Edgar Neftali Torres Prieto ","Jeimmy Catalina Angel Delgadillo ","Jerson Arley Arroyo López","Subdirección de Servicios y de Relación con el Ciudadano","Todas las entidades SH","Otras","x","x",null,null,null,"Registros de asistencia y presentación de las mesas sectoriales, incluidos productos y entregables",null,0.25,"Registros de asistencia y presentación de las mesas sectoriales, incluidos productos y entregables",null,null,0.35,"Registros de asistencia y presentación de las mesas sectoriales, incluidos productos y entregables",null,null,0.4,{"$f":"X29+AB29+AF29","v":1}]
[null,22,"Gestión de capacidades institucionales","GC2.  Fortalecer la gestión pública a través de procesos administrativos, financieros y jurídicos del Sector Hacienda","SH.Ini.2023.2026.GC2.02 Fortalecer la generación de proyectos de responsabilidad social-ambiental y buenas prácticas para mejorar el desempeño ambiental en las Entidades del Sector Hacienda.","Participar en las mesas sectoriales  de gestión y desempeño ambiental \n\nMesa Sectorial 8","Asistencia por parte de las entidades del Sector Hacienda, en las mesas y productos generados por las entidades a partir de las temática trabajadas en la mesa. ","Táctico","2024-01-01","2024-12-31","Cada Entidad","Cada Entidad","Cada Entidad","Cada Entidad","Todas las entidades SH","Cada Entidad","x","x",null,null,null,"Listas de asistencia \nPresentaciones",null,0.25,"Listas de asistencia \nPresentaciones",null,null,0.35,"Listas de asistencia \nPresentaciones",null,null,0.4,1]
[null,23,"Gestión de capacidades institucionales","GC2.  Fortalecer la gestión pública a través de procesos administrativos, financieros y jurídicos del Sector Hacienda","SH.Ini.2023.2026.GC2.01 Desarrollar mecanismos para un adecuado ejercicio de defensa jurídica de las Entidades del Sector Hacienda","Realizar una capacitación para el Sector Hacienda , donde se presenten las actualizaciones de la Política de Mejora Normativa. ","Establecer junto con el Departamento Nacional de Planeación - DNP una sesión de socialización en materia de la Política de Mejora Normativa y sus actualizaciones para el Sector Hacienda. ","Estratégico","2024-02-15","2024-08-31","Nasly Jennifer Ruíz González","Diego Armando Arias Urrea","N/A","Ministerio de Hacienda y Crédito Público- Secretaría General","Todas las entidades SH","Cierre de brechas FURAG","Tarea nueva propuesta por MHCP- Secretaria General","x",null,null,null,null,null,0.25,"Entrega de las evidencias resultantes de la capacitación (Listas de asistencia, grabación y material)\"",null,null,0.35,"N/A",null,null,0.4,{"$f":"X31+AB31+AF31","v":1}]
[null,24,"Gestión para el resultado","GR1. Fortalecer los mecanismos para una cultura de transparencia y participación ciudadana en las entidades del Sector Hacienda","SH.Ini.2023.2026.GR1.01 Diseñar e implementar estrategias para la divulgación de información y relacionamiento con el ciudadano","Gestionar ante el líder nacional de la Política de Compras y Contratación Pública, consulta sobre la aplicabilidad o no de publicar el Plan de Compras en el SECOP II para las entidades del Sector Hacienda con régimen especial de contratación ","En consideración a la evaluación FURAG para la política de compras y contratación pública, no se tuvo en cuenta la no aplicabilidad de algunos aspectos que afectaron el índice IDI en materia del SECOP II","Táctico","2024-01-15","2024-06-30",null,null,null,"Ministerio de Hacienda y Crédito Público","Todas entidades SH\n",null,"\nTarea Propuesta por Findeter\n\nCierre brechas FURAG","X"]
[null,25,"Gestión para el resultado","GR1. Fortalecer los mecanismos para una cultura de transparencia y participación ciudadana en las entidades del Sector Hacienda","SH.Ini.2023.2026.GR1.01 Diseñar e implementar estrategias para la divulgación de información y relacionamiento con el ciudadano","Formular e implementar la estrategia de lenguaje claro.","Formular e implementar la estrategia de lenguaje claro. Formular e implementar la estrategia de lenguaje claro para las entidades del Sector Hacienda","Táctico","2024-02-01","2024-12-31","Por definir","Por definir","Por definir","Ministerio de Hacienda y Crédito Público","Todas entidades SH\n",null,"Tarea \nPropuesta por Supersolidaria\n\nCierre brechas FURAG","X"]
[null,26,"Gestión para el resultado"," GR2. Fortalecer la gestión del conocimiento y la innovación en las entidades del Sector Hacienda","SH.Ini.2023.2026.GR2.01 Desarrollar espacios encaminados al fortalecimiento sectorial de la Política de Gestión del Conocimiento y la Innovación, de acuerdo con los lineamientos del Modelo Integrado de Planeación y Gestión - MIPG.","Establecer estrategias de transferencia de conocimiento con entidades del sector.","Estructurar mecanismos en donde se pueda compartir el conocimiento de las entidades que tuvieron una calificación positiva en  la política de gestión del conocimiento y la innovación ","Táctico","2024-02-01","2024-11-29","Por definir","Por definir","Por definir","Todas las entidades SH\n\n","Todas entidades SH\n","Por definir","Tarea propuesta por Findeter\n\nCierre brechas FURAG","X",null,null,null,null,null,0.25,null,null,null,0.35,null,null,null,0.4,{"$f":"X34+AB34+AF34","v":1},null,null,null,null,"N/A","N/A","N/A","N/A","N/A","N/A","N/A"]
[null,27,"Gestión para el resultado"," GR2. Fortalecer la gestión del conocimiento y la innovación en las entidades del Sector Hacienda","SH.Ini.2023.2026.GR2.01 Desarrollar espacios encaminados al fortalecimiento sectorial de la Política de Gestión del Conocimiento y la Innovación, de acuerdo con los lineamientos del Modelo Integrado de Planeación y Gestión - MIPG.","Gestionar ante el líder nacional de la Política de Gestión de la Información Estadística, capacitación sobre la implementación de los aspectos de la política para las entidades del Sector Hacienda.","En consideración a la evaluación FURAG para esta política y considerando que la mayoría de las entidades registran bajos puntajes en la implementación de la misma, se hace necesario lograr el apoyo del DANE para el desarrollo de esta política acorde con las características de cada entidad sector.","Táctico","2024-01-15","2024-12-15","Por definir","Por definir","Por definir","Todas las entidades SH\n\n","Todas entidades SH\n",null,"Tarea Propuesta por Findeter\n\nCierre brechas FURAG","X",null,null,null,null,null,0.25,null,null,null,0.35,null,null,null,0.4,{"$f":"X35+AB35+AF35","v":1}]
[null,28,"Gestión para el resultado"," GR2. Fortalecer la gestión del conocimiento y la innovación en las entidades del Sector Hacienda","SH.Ini.2023.2026.GR2.01 Desarrollar espacios encaminados al fortalecimiento sectorial de la Política de Gestión del Conocimiento y la Innovación, de acuerdo con los lineamientos del Modelo Integrado de Planeación y Gestión - MIPG.","Realizar Mesas Sectoriales y capacitaciones de la Política Gestión Estadística","Realizar mesas sectoriales y capacitaciones relacionadas con la política de Gestión Estadística lideradas por Ministerio de Hacienda en el marco de la dimensión de Información y Comunicación","Estratégico","2024-03-01","2024-12-31","Por definir","Por definir","Por definir","Todas las entidades SH\n\n","Todas entidades SH\n",null,"Tarea Propuesta por SAE\n\nCierre brechas FURAG","X",null,null,null,null,null,0.25,null,null,null,0.35,null,null,null,0.4,1]
[null,29,"Gestión para el resultado"," GR2. Fortalecer la gestión del conocimiento y la innovación en las entidades del Sector Hacienda","SH.Ini.2023.2026.GR2.01 Desarrollar espacios encaminados al fortalecimiento sectorial de la Política de Gestión del Conocimiento y la Innovación, de acuerdo con los lineamientos del Modelo Integrado de Planeación y Gestión - MIPG.","Elaborar diagnóstico sobre la actividad estadística.","Elaborar diagnóstico sobre la actividad estadística a partir del resultado de diagnóstico adelantado a través de la herramienta de autodiagnóstico de la política de gestión de la información estadística, con el fin de establecer la línea base de implementación de la política.","Estratégico","2024-01-01","2024-03-01","Por definir","Por definir","Por definir","Todas las entidades SH\n\n","Todas entidades SH\n",null,"Tarea Propuesta por Fondo de Adaptación\n\nCierre brechas FURAG","X",null,null,null,null,null,0.25,null,null,null,0.35,null,null,null,0.4,1]
[null,30,"Gestión para el resultado"," GR2. Fortalecer la gestión del conocimiento y la innovación en las entidades del Sector Hacienda","SH.Ini.2023.2026.GR2.02 Fortalecer la  Gestión Documental en las entidades del Sector Hacienda","Gestionar ante el líder nacional  de la Política de Gestión Documental, capacitación sobre los principales instrumentos de gestión de la información que contempla dicha política para las entidades del Sector Hacienda.","En consideración a la evaluación FURAG para esta política y considerando que algunas entidades registran bajos puntajes en la implementación de la misma, se hace necesario lograr el apoyo del Archivo General de la Nación - AGN para el desarrollo de los principales instrumentos de gestión de la información acorde con las características de cada entidad del sector.","Táctico","2024-01-15","2024-12-15","Por definir","Por definir","Por definir","Todas las entidades SH\n","Todas entidades SH\n",null,"\nTarea Propuesta por Findeter\n\nCierre brechas FURAG","X",null,null,null,null,null,0.25,null,null,null,0.35,null,null,null,0.4,1]
[null,31,"Gestión para el resultado","GR3. Promover la transformación digital en las entidades del Sector para contribuir a la modernización de los procesos de entrega de productos y servicios de cada entidad","SH.Ini.2023.2026.GR3.02 Definir y ejecutar estrategias para apoyar la adopción de las políticas de gobierno y seguridad digital en las entidades del sector","Realizar diagnóstico para la implementación del Subsistema de Seguridad de la Información en las entidades del Sector Hacienda.","Realizar diagnóstico para la implementación del Subsistema de Seguridad de la Información. Documentar y aplicar el instrumento para la realización del diagnóstico de la implementación del subsistema de seguridad de la información de acuerdo con los lineamientos de la ISO 27001: 2022","táctico","2024-02-01","2026-12-20","Ricardo Rios","Maria Antonia Amaris Castillo","N/A","Todas las entidades SH\n","Todas entidades SH\n",null,"\nTarea Propuesta por Supersolidaria\n\nCierre brechas FURAG","X",null,null,null,null,null,0.25,null,null,null,0.35,null,null,null,0.4,1]
[null,32,"Gestión de capacidades institucionales"," GC1. Fortalecer las capacidades del talento humano y promover la cultura de integridad del Sector Hacienda","SH.Ini.2023.2026.GC1.01 Desarrollar espacios encaminados al fortalecimiento sectorial de la Política de Gestión Estratégica de Talento Humano y Política de Integridad, de acuerdo con lo lineamientos del Modelo Integrado de Planeación y Gestión - MIPG.","Realizar actividades relacionadas con las actitudes, valores y conductas definidas en el código de integridad que impactan los procesos de selección de personal de las entidades\n\n","Verificar información de manuales de funciones y otros documentos soporte para prevenir posibles conflictos de intereses y reducción de riesgos de corrupción en los\nprocesos de selección, en las entidades del Sector Hacienda",null,null,null,null,null,"Ministerio de Hacienda y Crédito Público","Todas las entidades del SH\n\n","Todas entidades SH\n",null,"Tarea Propuesta por Contaduría General\n\nCierre brechas FURAG","X",null,null,null,null,null,0.25,null,null,null,0.35,null,null,null,0.4,1]

{"sheet":"Despliegue tareas entidades","index":7,"n_rows":247,"n_cols":6,"rows_kept":247,"cut":false,"hidden":true,"merged":[[4,1,4,5],[1,2,1,5],[187,2,187,5],[217,2,217,5],[6,1,6,5],[37,2,37,5],[67,2,67,5],[97,2,97,5],[127,2,127,5],[157,2,157,5]]}
[]
[null,null,"Plan Estratégico-Sectorial 2024\nDespliegue tareas entidades"]
[]
[]
[null,"Nota: Se solicita a las entidades del Sector Hacienda, diligenciar los responsables en cada mesa sectorial."]
[]
[null,"Tarea 1: Participar en las actividades que se definan en las mesas sectoriales de relacionamiento ciudadano"]
[null,"No.","Entidad  ","Nombre aprobador tarea SMGI","Nombre documentador tarea SMGI","Nombre del recurso SMGI"]
[null,1,"BANCO AGRARIO"]
[null,2,"BANCOLDEX"]
[null,3,"CGN - CONTADURÍA"]
[null,4,"CISA"]
[null,5,"COLJUEGOS"]
[null,6,"DIAN"]
[null,7,"ENTERRITORIO"]
[null,8,"FDN - FINANCIERA DE DESARROLLO NACIONAL"]
[null,9,"FIDUAGRARIA"]
[null,10,"FIDUCOLDEX"]
[null,11,"FIDUPREVISORA"]
[null,12,"FINAGRO"]
[null,13,"FINDETER"]
[null,14,"FOGACOOP"]
[null,15,"FOGAFÍN"]
[null,16,"FONDO ADAPTACIÓN"]
[null,17,"FONDO NACIONAL DEL AHORRO"]
[null,18,"FONDO NACIONAL DE GARANTÍAS"]
[null,19,"GRUPO BICENTENARIO"]
[null,20,"ICETEX"]
[null,21,"ITRC"]
[null,22,"POSITIVA"]
[null,23,"PREVISORA"]
[null,24,"SAE"]
[null,25,"SUPERFINANCIERA"]
[null,26,"SUPERSOLIDARIA"]
[null,27,"UGPP"]
[null,28,"UIAF"]
[null,29,"URF"]
[null,null,"Tarea 2: Participar en las actividades que se definan en las mesas sectoriales de colectivo disciplinario"]
[null,30,"BANCO AGRARIO"]
[null,31,"BANCOLDEX"]
[null,32,"CGN - CONTADURÍA"]
[null,33,"CISA"]
[null,34,"COLJUEGOS"]
[null,35,"DIAN"]
[null,36,"ENTERRITORIO"]
[null,37,"FDN - FINANCIERA DE DESARROLLO NACIONAL"]
[null,38,"FIDUAGRARIA"]
[null,39,"FIDUCOLDEX"]
[null,40,"FIDUPREVISORA"]
[null,41,"FINAGRO"]
[null,42,"FINDETER"]
[null,43,"FOGACOOP"]
[null,44,"FOGAFÍN"]
[null,45,"FONDO ADAPTACIÓN"]
[null,46,"FONDO NACIONAL DEL AHORRO"]
[null,47,"FONDO NACIONAL DE GARANTÍAS"]
[null,48,"GRUPO BICENTENARIO"]
[null,49,"ICETEX"]
[null,50,"ITRC"]
[null,51,"POSITIVA"]
[null,52,"PREVISORA"]
[null,53,"SAE"]
[null,54,"SUPERFINANCIERA"]
[null,55,"SUPERSOLIDARIA"]
[null,56,"UGPP"]
[null,57,"UIAF"]
[null,58,"URF"]
[null,null,"Tarea 3: Participar en las actividades que se definan en la comunidad de practica sectorial de Gestión del Conocimiento e innovación "]
[null,59,"BANCO AGRARIO"]
[null,60,"BANCOLDEX"]
[null,61,"CGN - CONTADURÍA"]
[null,62,"CISA"]
[null,63,"COLJUEGOS"]
[null,64,"DIAN"]
[null,65,"ENTERRITORIO"]
[null,66,"FDN - FINANCIERA DE DESARROLLO NACIONAL"]
[null,67,"FIDUAGRARIA"]
[null,68,"FIDUCOLDEX"]
[null,69,"FIDUPREVISORA"]
[null,70,"FINAGRO"]
[null,71,"FINDETER"]
[null,72,"FOGACOOP"]
[null,73,"FOGAFÍN"]
[null,74,"FONDO ADAPTACIÓN"]
[null,75,"FONDO NACIONAL DEL AHORRO"]
[null,76,"FONDO NACIONAL DE GARANTÍAS"]
[null,77,"GRUPO BICENTENARIO"]
[null,78,"ICETEX"]
[null,79,"ITRC"]
[null,80,"POSITIVA"]
[null,81,"PREVISORA"]
[null,82,"SAE"]
[null,83,"SUPERFINANCIERA"]
[null,84,"SUPERSOLIDARIA"]
[null,85,"UGPP"]
[null,86,"UIAF"]
[null,87,"URF"]
[null,null,"\n\nTarea 4: Participar en las actividades que convoque el líder temático de Gobierno Digital y Seguridad Digital"]
[null,88,"BANCO AGRARIO"]
[null,89,"BANCOLDEX"]
[null,90,"CGN - CONTADURÍA"]
[null,91,"CISA"]
[null,92,"COLJUEGOS"]
[null,93,"DIAN"]
[null,94,"ENTERRITORIO"]
[null,95,"FDN - FINANCIERA DE DESARROLLO NACIONAL"]
[null,96,"FIDUAGRARIA"]
[null,97,"FIDUCOLDEX"]
[null,98,"FIDUPREVISORA"]
[null,99,"FINAGRO"]
[null,100,"FINDETER"]
[null,101,"FOGACOOP"]
[null,102,"FOGAFÍN"]
[null,103,"FONDO ADAPTACIÓN"]
[null,104,"FONDO NACIONAL DEL AHORRO"]
[null,105,"FONDO NACIONAL DE GARANTÍAS"]
[null,106,"GRUPO BICENTENARIO"]
[null,107,"ICETEX"]
[null,108,"ITRC"]
[null,109,"POSITIVA"]
[null,110,"PREVISORA"]
[null,111,"SAE"]
[null,112,"SUPERFINANCIERA"]
[null,113,"SUPERSOLIDARIA"]
[null,114,"UGPP"]
[null,115,"UIAF"]
[null,116,"URF"]
[null,null,"\nTarea 5: Participar  en las mesas sectoriales, capacitaciones gestionadas por el Ministerio de Hacienda en el marco de la dimensión del Talento Humano\n\n"]
[null,117,"BANCO AGRARIO"]
[null,118,"BANCOLDEX"]
[null,119,"CGN - CONTADURÍA"]
[null,120,"CISA"]
[null,121,"COLJUEGOS"]
[null,122,"DIAN"]
[null,123,"ENTERRITORIO"]
[null,124,"FDN - FINANCIERA DE DESARROLLO NACIONAL"]
[null,125,"FIDUAGRARIA"]
[null,126,"FIDUCOLDEX"]
[null,127,"FIDUPREVISORA"]
[null,128,"FINAGRO"]
[null,129,"FINDETER"]
[null,130,"FOGACOOP"]
[null,131,"FOGAFÍN"]
[null,132,"FONDO ADAPTACIÓN"]
[null,133,"FONDO NACIONAL DEL AHORRO"]
[null,134,"FONDO NACIONAL DE GARANTÍAS"]
[null,135,"GRUPO BICENTENARIO"]
[null,136,"ICETEX"]
[null,137,"ITRC"]
[null,138,"POSITIVA"]
[null,139,"PREVISORA"]
[null,140,"SAE"]
[null,141,"SUPERFINANCIERA"]
[null,142,"SUPERSOLIDARIA"]
[null,143,"UGPP"]
[null,144,"UIAF"]
[null,145,"URF"]
[null,null,"\n\nTAREA 6: Participar en las mesas sectoriales de la política de Defensa Jurídica del Sector Hacienda "]
[null,146,"BANCO AGRARIO"]
[null,147,"BANCOLDEX"]
[null,148,"CGN - CONTADURÍA"]
[null,149,"CISA"]
[null,150,"COLJUEGOS"]
[null,151,"DIAN"]
[null,152,"ENTERRITORIO"]
[null,153,"FDN - FINANCIERA DE DESARROLLO NACIONAL"]
[null,154,"FIDUAGRARIA"]
[null,155,"FIDUCOLDEX"]
[null,156,"FIDUPREVISORA"]
[null,157,"FINAGRO"]
[null,158,"FINDETER"]
[null,159,"FOGACOOP"]
[null,160,"FOGAFÍN"]
[null,161,"FONDO ADAPTACIÓN"]
[null,162,"FONDO NACIONAL DEL AHORRO"]
[null,163,"FONDO NACIONAL DE GARANTÍAS"]
[null,164,"GRUPO BICENTENARIO"]
[null,165,"ICETEX"]
[null,166,"ITRC"]
[null,167,"POSITIVA"]
[null,168,"PREVISORA"]
[null,169,"SAE"]
[null,170,"SUPERFINANCIERA"]
[null,171,"SUPERSOLIDARIA"]
[null,172,"UGPP"]
[null,173,"UIAF"]
[null,174,"URF"]
[null,null,"\n\nTarea 7: Participar en las mesas y actividades sectoriales de Gestión Documental"]
[null,175,"BANCO AGRARIO"]
[null,176,"BANCOLDEX"]
[null,177,"CGN - CONTADURÍA"]
[null,178,"CISA"]
[null,179,"COLJUEGOS"]
[null,180,"DIAN"]
[null,181,"ENTERRITORIO"]
[null,182,"FDN - FINANCIERA DE DESARROLLO NACIONAL"]
[null,183,"FIDUAGRARIA"]
[null,184,"FIDUCOLDEX"]
[null,185,"FIDUPREVISORA"]
[null,186,"FINAGRO"]
[null,187,"FINDETER"]
[null,188,"FOGACOOP"]
[null,189,"FOGAFÍN"]
[null,190,"FONDO ADAPTACIÓN"]
[null,191,"FONDO NACIONAL DEL AHORRO"]
[null,192,"FONDO NACIONAL DE GARANTÍAS"]
[null,193,"GRUPO BICENTENARIO"]
[null,194,"ICETEX"]
[null,195,"ITRC"]
[null,196,"POSITIVA"]
[null,197,"PREVISORA"]
[null,198,"SAE"]
[null,199,"SUPERFINANCIERA"]
[null,200,"SUPERSOLIDARIA"]
[null,201,"UGPP"]
[null,202,"UIAF"]
[null,203,"URF"]
[null,null,"\n\nTarea 8: Participar en las mesas y actividades sectoriales de Gestión Ambiental"]
[null,204,"BANCO AGRARIO"]
[null,205,"BANCOLDEX"]
[null,206,"CGN - CONTADURÍA"]
[null,207,"CISA"]
[null,208,"COLJUEGOS"]
[null,209,"DIAN"]
[null,210,"ENTERRITORIO"]
[null,211,"FDN - FINANCIERA DE DESARROLLO NACIONAL"]
[null,212,"FIDUAGRARIA"]
[null,213,"FIDUCOLDEX"]
[null,214,"FIDUPREVISORA"]
[null,215,"FINAGRO"]
[null,216,"FINDETER"]
[null,217,"FOGACOOP"]
[null,218,"FOGAFÍN"]
[null,219,"FONDO ADAPTACIÓN"]
[null,220,"FONDO NACIONAL DEL AHORRO"]
[null,221,"FONDO NACIONAL DE GARANTÍAS"]
[null,222,"GRUPO BICENTENARIO"]
[null,223,"ICETEX"]
[null,224,"ITRC"]
[null,225,"POSITIVA"]
[null,226,"PREVISORA"]
[null,227,"SAE"]
[null,228,"SUPERFINANCIERA"]
[null,229,"SUPERSOLIDARIA"]
[null,230,"UGPP"]
[null,231,"UIAF"]
[null,232,"URF"]